DEPARTMENTAL FAMILY,ENTITY,DATE,EXPENSE AREA,EXPENSE TYPE,SUPPLIER,TRANSACTION NUMBER,AMOUNT
Ministry of Justice,HMCS,17-Nov-10,CZ999-South East Region,130001-Other Income,MARSTON GROUP,1405851,"83,938.84"
Ministry of Justice,HMCS,17-Nov-10,CZ999-South East Region,130001-Other Income,MARSTON GROUP,1405851,"99,446.00"
Ministry of Justice,HMCS,17-Nov-10,AR999-HMCS Central Budgets,211000-Judicial Salaries - Salaried,JUDICIAL PENSIONS SCHEME,1405756,"4,833,933.18"
Ministry of Justice,HMCS,10-Nov-10,AV329-CP-Mag. Courts Operational Bus.sys,212001-Agency staff,NES IT LTD,1398064,"28,552.50"
Ministry of Justice,HMCS,10-Nov-10,AG999-Estates Directorate HMCS HQ,222002-Other Property Costs,BEACHCROFT,1397472,"35,265.06"
Ministry of Justice,HMCS,19-Nov-10,AG999-Estates Directorate HMCS HQ,222002-Other Property Costs,MICHELMORES SOLICITORS,1408365,"29,190.97"
Ministry of Justice,HMCS,24-Nov-10,AG999-Estates Directorate HMCS HQ,222002-Other Property Costs,BEACHCROFT,1412511,"34,958.95"
Ministry of Justice,HMCS,12-Nov-10,BZ999-London Region,222001-Maintenance,TURNER & TOWNSEND PROJECT MANAGEMENT,1401319,"30,353.78"
Ministry of Justice,HMCS,12-Nov-10,AG999-Estates Directorate HMCS HQ,222001-Maintenance,VALUATION OFFICE AGENCY,1401325,"58,750.00"
Ministry of Justice,HMCS,24-Nov-10,AG999-Estates Directorate HMCS HQ,222001-Maintenance,WHEELERS,1414183,"37,840.35"
Ministry of Justice,HMCS,24-Nov-10,CZ999-South East Region,222001-Maintenance,WILLMOTT DIXON SUSTAIN LTD,1414208,"33,678.83"
Ministry of Justice,HMCS,10-Nov-10,GZ999-North West Region,261000-Fuel and Utilities,UNITED UTILITIES WATER PLC,239163,"28,218.18"
Ministry of Justice,HMCS,12-Nov-10,IZ999-RCJ Group,261000-Fuel and Utilities,EDF ENERGY LTD,1400830,"39,440.07"
Ministry of Justice,HMCS,24-Nov-10,FZ999-Midlands Region,261000-Fuel and Utilities,BRITISH GAS BUSINESS,1412544,"27,057.53"
Ministry of Justice,HMCS,24-Nov-10,HZ999-North East and Yorkshire,261000-Fuel and Utilities,BRITISH GAS BUSINESS,1412544,"34,470.31"
Ministry of Justice,HMCS,24-Nov-10,CZ999-South East Region,261000-Fuel and Utilities,BRITISH GAS BUSINESS,1412544,"47,967.94"
Ministry of Justice,HMCS,24-Nov-10,BZ999-London Region,261000-Fuel and Utilities,BRITISH GAS BUSINESS,1412543,"26,416.61"
Ministry of Justice,HMCS,24-Nov-10,DZ999-South West Region,261000-Fuel and Utilities,BRITISH GAS BUSINESS,1412544,"32,788.83"
Ministry of Justice,HMCS,24-Nov-10,EZ999-Wales Region,261000-Fuel and Utilities,BRITISH GAS BUSINESS,1412544,"31,299.03"
Ministry of Justice,HMCS,26-Nov-10,GZ999-North West Region,261000-Fuel and Utilities,BRITISH GAS BUSINESS,1415731,"26,497.89"
Ministry of Justice,HMCS,10-Nov-10,HZ999-North East and Yorkshire,261000-Fuel and Utilities,CORONA ENERGY,1397617,"94,106.67"
Ministry of Justice,HMCS,24-Nov-10,HZ999-North East and Yorkshire,261000-Fuel and Utilities,CORONA ENERGY,1412641,"46,464.12"
Ministry of Justice,HMCS,24-Nov-10,CZ999-South East Region,261000-Fuel and Utilities,CORONA ENERGY,1412641,"56,580.49"
Ministry of Justice,HMCS,24-Nov-10,GZ999-North West Region,261000-Fuel and Utilities,CORONA ENERGY,1412641,"50,090.11"
Ministry of Justice,HMCS,10-Nov-10,DZ999-South West Region,222002-Other Property Costs,MITIE SECURITY LTD,1398035,"302,063.36"
Ministry of Justice,HMCS,10-Nov-10,EZ999-Wales Region,222002-Other Property Costs,MITIE SECURITY LTD,1398035,"188,693.85"
Ministry of Justice,HMCS,10-Nov-10,FZ999-Midlands Region,222002-Other Property Costs,MITIE SECURITY LTD,1398035,"444,276.48"
Ministry of Justice,HMCS,10-Nov-10,CZ999-South East Region,222002-Other Property Costs,MITIE SECURITY LTD,1398035,"564,571.77"
Ministry of Justice,HMCS,17-Nov-10,HZ999-North East and Yorkshire,222002-Other Property Costs,MITIE SECURITY LTD,1405892,"418,880.94"
Ministry of Justice,HMCS,17-Nov-10,GZ999-North West Region,222002-Other Property Costs,MITIE SECURITY LTD,1405892,"431,668.16"
Ministry of Justice,HMCS,19-Nov-10,BZ999-London Region,222002-Other Property Costs,MITIE SECURITY LTD,1408374,"750,735.99"
Ministry of Justice,HMCS,03-Nov-10,CZ999-South East Region,222002-Other Property Costs,HI-SPEC FACILITIES SUPPORT CO PLC,1390024,"253,161.11"
Ministry of Justice,HMCS,03-Nov-10,HZ999-North East and Yorkshire,222002-Other Property Costs,RENTOKIL INITIAL UK LIMITED,1390408,"49,793.82"
Ministry of Justice,HMCS,03-Nov-10,GZ999-North West Region,222002-Other Property Costs,RENTOKIL INITIAL UK LIMITED,1390409,"58,521.74"
Ministry of Justice,HMCS,10-Nov-10,EZ999-Wales Region,222002-Other Property Costs,OCS SUPPORT SERVICES LTD,1398099,"92,427.15"
Ministry of Justice,HMCS,10-Nov-10,GZ999-North West Region,222002-Other Property Costs,ELITE CLEANING & ENV SERVICES LTD,1397705,"174,468.46"
Ministry of Justice,HMCS,10-Nov-10,HZ999-North East and Yorkshire,222002-Other Property Costs,ELITE CLEANING & ENV SERVICES LTD,1397705,"135,494.91"
Ministry of Justice,HMCS,24-Nov-10,GZ999-North West Region,222002-Other Property Costs,"OCS GROUP UK LTD, OCS ENGINEERING",1413045,"27,160.71"
Ministry of Justice,HMCS,26-Nov-10,IZ999-RCJ Group,222002-Other Property Costs,VICTORIA MEDICAL & GENERAL CLEANING SERVICES LTD,1416288,"65,716.73"
Ministry of Justice,HMCS,03-Nov-10,FZ999-Midlands Region,222001-Maintenance,EC HARRIS LLP,1389865,"94,536.06"
Ministry of Justice,HMCS,05-Nov-10,CZ999-South East Region,222001-Maintenance,EC HARRIS LLP,1392103,"149,812.50"
Ministry of Justice,HMCS,10-Nov-10,IZ999-RCJ Group,222001-Maintenance,EC HARRIS LLP,1397695,"31,725.00"
Ministry of Justice,HMCS,10-Nov-10,BZ999-London Region,222001-Maintenance,EC HARRIS LLP,1397695,"95,103.81"
Ministry of Justice,HMCS,24-Nov-10,EZ999-Wales Region,222001-Maintenance,WYG MANAGEMENT SERVICES LTD,1414234,"32,458.46"
Ministry of Justice,HMCS,24-Nov-10,EZ999-Wales Region,222001-Maintenance,WYG MANAGEMENT SERVICES LTD,1414234,"35,250.00"
Ministry of Justice,HMCS,26-Nov-10,IZ999-RCJ Group,222001-Maintenance,EC HARRIS LLP,1415842,"31,725.00"
Ministry of Justice,HMCS,26-Nov-10,HZ999-North East and Yorkshire,222001-Maintenance,DTZ DEBENHAM TIE LEUNG,1415831,"58,164.34"
Ministry of Justice,HMCS,17-Nov-10,GZ999-North West Region,222001-Maintenance,BOLTON COUNCIL,1405294,"25,643.85"
Ministry of Justice,HMCS,10-Nov-10,GZ999-North West Region,222001-Maintenance,TASS EUROPE LTD,1399036,"42,152.97"
Ministry of Justice,HMCS,17-Nov-10,GZ999-North West Region,222001-Maintenance,TASS EUROPE LTD,1406777,"30,689.30"
Ministry of Justice,HMCS,26-Nov-10,HZ999-North East and Yorkshire,222001-Maintenance,TASS EUROPE LTD,1416261,"51,512.20"
Ministry of Justice,HMCS,03-Nov-10,FZ999-Midlands Region,222001-Maintenance,MITIE TECHNICAL FACILITIES MANAGEMENT LTD,1390253,"82,475.94"
Ministry of Justice,HMCS,05-Nov-10,HZ999-North East and Yorkshire,222001-Maintenance,HONEYWELL CONTROL SYSTEMS LTD,1392226,"36,624.02"
Ministry of Justice,HMCS,05-Nov-10,HZ999-North East and Yorkshire,222001-Maintenance,BAILEY MAINTENANCE LTD,1391945,"46,945.25"
Ministry of Justice,HMCS,05-Nov-10,FZ999-Midlands Region,222001-Maintenance,MITIE TECHNICAL FACILITIES MANAGEMENT LTD,1392357,"37,709.72"
Ministry of Justice,HMCS,05-Nov-10,DZ999-South West Region,222001-Maintenance,MITIE TECHNICAL FACILITIES MANAGEMENT LTD,1392357,"91,945.72"
Ministry of Justice,HMCS,05-Nov-10,GZ999-North West Region,222001-Maintenance,BAILEY MAINTENANCE LTD,1391945,"58,644.04"
Ministry of Justice,HMCS,05-Nov-10,HZ999-North East and Yorkshire,222001-Maintenance,BAILEY MAINTENANCE LTD,1391945,"55,255.91"
Ministry of Justice,HMCS,05-Nov-10,EZ999-Wales Region,222001-Maintenance,KIER BUILDING SERVICES ENG,238073,"49,060.16"
Ministry of Justice,HMCS,05-Nov-10,EZ999-Wales Region,222001-Maintenance,KIER BUILDING SERVICES ENG,238073,"31,377.42"
Ministry of Justice,HMCS,05-Nov-10,DZ999-South West Region,222001-Maintenance,KIER BUILDING SERVICES ENG,238074,"36,174.48"
Ministry of Justice,HMCS,10-Nov-10,DZ999-South West Region,222001-Maintenance,MITIE TECHNICAL FACILITIES MANAGEMENT LTD,1398037,"91,945.72"
Ministry of Justice,HMCS,10-Nov-10,HZ999-North East and Yorkshire,222001-Maintenance,HONEYWELL CONTROL SYSTEMS LTD,1397859,"36,624.02"
Ministry of Justice,HMCS,10-Nov-10,FZ999-Midlands Region,222001-Maintenance,EMCOR FACILITIES SERVICES LTD,1397712,"133,201.50"
Ministry of Justice,HMCS,17-Nov-10,CZ999-South East Region,222001-Maintenance,NORLAND MANAGED SERVICES LTD,1405922,"32,172.56"
Ministry of Justice,HMCS,17-Nov-10,CZ999-South East Region,222001-Maintenance,BAILEY MAINTENANCE LTD,1405243,"26,511.53"
Ministry of Justice,HMCS,17-Nov-10,CZ999-South East Region,222001-Maintenance,MITIE TECHNICAL FACILITIES MANAGEMENT LTD,1405893,"41,321.37"
Ministry of Justice,HMCS,17-Nov-10,DZ999-South West Region,222001-Maintenance,NORLAND MANAGED SERVICES LTD,1405921,"38,544.62"
Ministry of Justice,HMCS,17-Nov-10,CZ999-South East Region,222001-Maintenance,NORLAND MANAGED SERVICES LTD,1405922,"40,518.14"
Ministry of Justice,HMCS,17-Nov-10,DZ999-South West Region,222001-Maintenance,MITIE TECHNICAL FACILITIES MANAGEMENT LTD,1405894,"91,945.72"
Ministry of Justice,HMCS,17-Nov-10,BZ999-London Region,222001-Maintenance,NORLAND MANAGED SERVICES LTD,1405922,"27,783.47"
Ministry of Justice,HMCS,19-Nov-10,BZ999-London Region,222001-Maintenance,MITIE TECHNICAL FACILITIES MANAGEMENT LTD,1408376,"117,286.57"
Ministry of Justice,HMCS,19-Nov-10,GZ999-North West Region,222001-Maintenance,CARILLION PLANNED MAINTENANCE,1408098,"190,299.44"
Ministry of Justice,HMCS,24-Nov-10,FZ999-Midlands Region,222001-Maintenance,MITIE TECHNICAL FACILITIES MANAGEMENT LTD,1413002,"82,475.94"
Ministry of Justice,HMCS,24-Nov-10,FZ999-Midlands Region,222001-Maintenance,MITIE TECHNICAL FACILITIES MANAGEMENT LTD,1413002,"33,399.38"
Ministry of Justice,HMCS,26-Nov-10,BZ999-London Region,222001-Maintenance,NORLAND MANAGED SERVICES LTD,1416103,"34,923.82"
Ministry of Justice,HMCS,26-Nov-10,HZ999-North East and Yorkshire,222001-Maintenance,BAILEY MAINTENANCE LTD,1415688,"46,945.25"
Ministry of Justice,HMCS,26-Nov-10,IZ999-RCJ Group,222001-Maintenance,CARILLION PLANNED MAINTENANCE,1415759,"64,601.79"
Ministry of Justice,HMCS,26-Nov-10,HZ999-North East and Yorkshire,222001-Maintenance,BAILEY MAINTENANCE LTD,1415688,"55,255.91"
Ministry of Justice,HMCS,26-Nov-10,IZ999-RCJ Group,222001-Maintenance,CARILLION PLANNED MAINTENANCE,1415759,"64,601.79"
Ministry of Justice,HMCS,05-Nov-10,IZ999-RCJ Group,222001-Maintenance,SYKES & SON LTD,1393219,"36,660.59"
Ministry of Justice,HMCS,10-Nov-10,CZ999-South East Region,222001-Maintenance,NEEDHAM (BULDING CONTRACTORS) LTD,1398060,"31,002.38"
Ministry of Justice,HMCS,12-Nov-10,BZ999-London Region,222001-Maintenance,SYKES & SON LTD,1401282,"27,361.05"
Ministry of Justice,HMCS,12-Nov-10,BZ999-London Region,222001-Maintenance,SYKES & SON LTD,1401282,"26,363.97"
Ministry of Justice,HMCS,03-Nov-10,CZ999-South East Region,262000-SCA Costs,MODERN COURTS (EAST ANGLIA) LTD,1390256,"472,155.95"
Ministry of Justice,HMCS,05-Nov-10,HZ999-North East and Yorkshire,262000-SCA Costs,MODERN COURTS (HUMBERSIDE) LTD,1392359,"391,947.05"
Ministry of Justice,HMCS,10-Nov-10,HZ999-North East and Yorkshire,262000-SCA Costs,PALECASTLE LTD,1398833,"104,520.26"
Ministry of Justice,HMCS,10-Nov-10,DZ999-South West Region,262000-SCA Costs,ENTERPRISE CIVIC BUILDINGS LIMITED,1397718,"323,841.55"
Ministry of Justice,HMCS,10-Nov-10,DZ999-South West Region,262000-SCA Costs,SERVICES SUPPORT (AVON & SOMERSET) LTD,1398969,"766,443.36"
Ministry of Justice,HMCS,19-Nov-10,IZ999-RCJ Group,262000-SCA Costs,IRON MOUNTAIN UK LTD,1408269,"176,226.72"
Ministry of Justice,HMCS,24-Nov-10,GZ999-North West Region,262000-SCA Costs,UK COURT SERVICES LTD,1414144,"534,352.67"
Ministry of Justice,HMCS,24-Nov-10,IZ999-RCJ Group,262000-SCA Costs,IRON MOUNTAIN UK LTD,1412875,"185,827.33"
Ministry of Justice,HMCS,24-Nov-10,FZ999-Midlands Region,262000-SCA Costs,DERBYSHIRE COURTS LTD,1412667,"477,712.61"
Ministry of Justice,HMCS,19-Nov-10,AB999-Court Improvement Directorate,223000-Other Expenditure,NATIONAL CENTRE FOR SOCIAL RESEARCH (NATCEN),1408387,"55,192.00"
Ministry of Justice,HMCS,03-Nov-10,HZ999-North East and Yorkshire,223001-Printing Postage and Office expenditure,HM PRISON SERVICE,1390038,"26,518.22"
Ministry of Justice,HMCS,19-Nov-10,HZ999-North East and Yorkshire,223001-Printing Postage and Office expenditure,XEROX (UK) LTD,1409174,"40,624.24"
Ministry of Justice,HMCS,05-Nov-10,DZ999-South West Region,223001-Printing Postage and Office expenditure,ROYAL MAIL,1393149,"47,582.06"
Ministry of Justice,HMCS,05-Nov-10,CZ999-South East Region,223001-Printing Postage and Office expenditure,ROYAL MAIL,1393149,"28,088.75"
Ministry of Justice,HMCS,10-Nov-10,GZ999-North West Region,263000-Other Contracted Out Services,ARAMARK LTD,1397434,"30,537.26"
Ministry of Justice,HMCS,12-Nov-10,DZ999-South West Region,263000-Other Contracted Out Services,COMPASS SERVICES UK & IRELAND LTD,242912,"29,793.19"
Ministry of Justice,HMCS,12-Nov-10,CZ999-South East Region,263000-Other Contracted Out Services,EUREST SERVICES,1400845,"32,706.92"
Ministry of Justice,HMCS,12-Nov-10,CZ999-South East Region,263000-Other Contracted Out Services,EUREST SERVICES,1400845,"31,546.40"
Ministry of Justice,HMCS,17-Nov-10,FZ999-Midlands Region,263000-Other Contracted Out Services,AVENANCE,1405240,"36,778.64"
Ministry of Justice,HMCS,24-Nov-10,BZ999-London Region,263000-Other Contracted Out Services,BAXTERSTOREY LTD,1412508,"63,246.89"
Ministry of Justice,HMCS,17-Nov-10,AV332-CBMP Civil Bus Mod Programme,265000-IT & Telecommunications,LIBERATA UK LTD,1405798,"110,248.17"
Ministry of Justice,HMCS,26-Nov-10,AV329-CP-Mag. Courts Operational Bus.sys,265000-IT & Telecommunications,HOME OFFICE IT,1415962,"25,951.05"
Ministry of Justice,HMCS,05-Nov-10,BZ999-London Region,265000-IT & Telecommunications,BT TELECOMMUNICATIONS PLC,1392011,"28,175.07"
Ministry of Justice,HMCS,10-Nov-10,IZ999-RCJ Group,265000-IT & Telecommunications,BT TELECOMMUNICATIONS PLC,1397529,"49,614.85"
Ministry of Justice,HMCS,10-Nov-10,FZ999-Midlands Region,265000-IT & Telecommunications,BT TELECOMMUNICATIONS PLC,1397529,"31,451.01"
Ministry of Justice,HMCS,12-Nov-10,BZ999-London Region,265000-IT & Telecommunications,INFORM COMMUNICATIONS PLC,1400969,"28,391.40"
Ministry of Justice,HMCS,19-Nov-10,CZ999-South East Region,265000-IT & Telecommunications,BT TELECOMMUNICATIONS PLC,1408071,"26,202.00"
Ministry of Justice,HMCS,03-Nov-10,CZ999-South East Region,265000-IT & Telecommunications,CABLE & WIRELESS,1389691,"25,419.94"
Ministry of Justice,HMCS,26-Nov-10,FZ999-Midlands Region,265000-IT & Telecommunications,CABLE & WIRELESS,1415748,"48,993.97"
Ministry of Justice,HMCS,26-Nov-10,FZ999-Midlands Region,265000-IT & Telecommunications,CABLE & WIRELESS,1415748,"48,993.97"
Ministry of Justice,HMCS,03-Nov-10,HZ999-North East and Yorkshire,265000-IT & Telecommunications,LOGICA UK LTD,1390180,"28,408.37"
Ministry of Justice,HMCS,03-Nov-10,HZ999-North East and Yorkshire,265000-IT & Telecommunications,LOGICA UK LTD,1390180,"32,035.20"
Ministry of Justice,HMCS,05-Nov-10,AV322-CP Change Management SUPS,265000-IT & Telecommunications,LOGICA UK LTD,1392299,"262,667.73"
Ministry of Justice,HMCS,05-Nov-10,AV322-CP Change Management SUPS,265000-IT & Telecommunications,LOGICA UK LTD,1392299,"63,923.53"
Ministry of Justice,HMCS,05-Nov-10,AA499-HMCS Change Programme,265000-IT & Telecommunications,LOGICA UK LTD,1392299,"132,259.18"
Ministry of Justice,HMCS,05-Nov-10,AV329-CP-Mag. Courts Operational Bus.sys,265000-IT & Telecommunications,LOGICA UK LTD,1392299,"35,006.94"
Ministry of Justice,HMCS,12-Nov-10,AV322-CP Change Management SUPS,265000-IT & Telecommunications,LOGICA UK LTD,1401041,"81,379.33"
Ministry of Justice,HMCS,12-Nov-10,AV322-CP Change Management SUPS,265000-IT & Telecommunications,LOGICA UK LTD,1401041,"93,699.20"
Ministry of Justice,HMCS,26-Nov-10,AV329-CP-Mag. Courts Operational Bus.sys,265000-IT & Telecommunications,LOGICA UK LTD,1416030,"29,995.40"
Ministry of Justice,HMCS,26-Nov-10,AV329-CP-Mag. Courts Operational Bus.sys,265000-IT & Telecommunications,LOGICA UK LTD,1416030,"77,550.00"
Ministry of Justice,HMCS,26-Nov-10,AV329-CP-Mag. Courts Operational Bus.sys,265000-IT & Telecommunications,LOGICA UK LTD,1416030,"35,006.94"
Ministry of Justice,HMCS,10-Nov-10,GZ999-North West Region,265000-IT & Telecommunications,ATOS ORIGIN IT SERVICES UK LTD,1397445,"37,352.08"
Ministry of Justice,HMCS,17-Nov-10,DZ999-South West Region,265000-IT & Telecommunications,ATOS ORIGIN IT SERVICES UK LTD,1405233,"34,258.30"
Ministry of Justice,HMCS,17-Nov-10,FZ999-Midlands Region,265000-IT & Telecommunications,ATOS ORIGIN IT SERVICES UK LTD,1405233,"73,392.85"
Ministry of Justice,HMCS,17-Nov-10,AB999-Court Improvement Directorate,265000-IT & Telecommunications,ATOS ORIGIN IT SERVICES UK LTD,1405233,"42,706.55"
Ministry of Justice,HMCS,24-Nov-10,AB999-Court Improvement Directorate,265000-IT & Telecommunications,LOGICA UK LTD,1412953,"33,838.83"
Ministry of Justice,HMCS,10-Nov-10,IZ999-RCJ Group,223000-Other Expenditure,HMRC,1397854,"206,527.72"
Ministry of Justice,HMCS,26-Nov-10,IZ999-RCJ Group,266000-Judicial Costs,GOVERNMENT CAR & DESPATCH AGENCY,1415914,"25,055.44"
Ministry of Justice,HMCS,19-Nov-10,BZ999-London Region,226000-Court Costs,SELLERS LEGAL SERVICES LTD,1409039,"48,441.22"
Ministry of Justice,HMCS,19-Nov-10,DZ999-South West Region,226000-Court Costs,MERRILL LEGAL SOLUTIONS,1408364,"46,004.82"
Ministry of Justice,HMCS,24-Nov-10,BZ999-London Region,226000-Court Costs,MERRILL LEGAL SOLUTIONS,1412992,"35,139.37"
Ministry of Justice,HMCS,24-Nov-10,BZ999-London Region,226000-Court Costs,MERRILL LEGAL SOLUTIONS,1412992,"27,771.75"
Ministry of Justice,HMCS,12-Nov-10,GZ999-North West Region,226000-Court Costs,CATER WALSH REPORTING LTD,242911,"74,295.57"
Ministry of Justice,HMCS,05-Nov-10,AU999-National Taxing Teams,226000-Court Costs,MESSRS MFG SOLICITORS LLP#B63 3EB,236730,"26,733.95"
Ministry of Justice,HMCS,05-Nov-10,AU999-National Taxing Teams,226000-Court Costs,MESSRS STEEL & SHAMASH#DX 36503,1391700,"26,395.78"
Ministry of Justice,HMCS,05-Nov-10,AU999-National Taxing Teams,226000-Court Costs,SAUNDERS LAW PARTNERSHIP#DX 37995,1391893,"30,908.02"
Ministry of Justice,HMCS,05-Nov-10,AU999-National Taxing Teams,226000-Court Costs,MESSRS EDWARD HAYES#DX 30307,1391555,"142,970.45"
Ministry of Justice,HMCS,05-Nov-10,AU999-National Taxing Teams,226000-Court Costs,MESSRS CARTWRIGHT ADAMS#W1S 4PS,236454,"25,348.64"
Ministry of Justice,HMCS,05-Nov-10,AU999-National Taxing Teams,226000-Court Costs,MESSRS FINERS STEPHENS INNOCENT#DX 42739,1391559,"73,683.08"
Ministry of Justice,HMCS,05-Nov-10,AU999-National Taxing Teams,226000-Court Costs,MESSRS KINGSLEY NAPLEY LLP#DX 22,236672,"89,152.72"
Ministry of Justice,HMCS,05-Nov-10,AU999-National Taxing Teams,226000-Court Costs,MESSRS CUBISM LAW#WC2A 1PP,236491,"44,798.05"
Ministry of Justice,HMCS,05-Nov-10,AU999-National Taxing Teams,226000-Court Costs,MESSRS BURROWS BUSSIN SOLICITORS#DX 14366,236445,"49,425.20"
Ministry of Justice,HMCS,05-Nov-10,AU999-National Taxing Teams,226000-Court Costs,MESSRS LUPTON FAWCETT LLP#DX 730000,236701,"29,660.85"
Ministry of Justice,HMCS,05-Nov-10,AU999-National Taxing Teams,226000-Court Costs,MESSRS WARD HADAWAY#DX 730360,236916,"90,190.65"
Ministry of Justice,HMCS,17-Nov-10,AU999-National Taxing Teams,226000-Court Costs,A M STRACHAN & CO,243957,"29,926.26"
Ministry of Justice,HMCS,19-Nov-10,AU999-National Taxing Teams,226000-Court Costs,MESSRS POWELL SPENCER MCGRATH #DX123862,1407799,"104,398.77"
Ministry of Justice,HMCS,19-Nov-10,AU999-National Taxing Teams,226000-Court Costs,MESSRS RONALD FLETCHER BAKER & CO#DX 137773,1407808,"31,353.14"
Ministry of Justice,HMCS,19-Nov-10,AU999-National Taxing Teams,226000-Court Costs,MESSRS BPI#SE1 7JA,1407685,"192,676.71"
Ministry of Justice,HMCS,19-Nov-10,AU999-National Taxing Teams,226000-Court Costs,MESSRS RUSSELL COOKE & CO#DX 112,247930,"106,861.75"
Ministry of Justice,HMCS,19-Nov-10,AU999-National Taxing Teams,226000-Court Costs,MESSRS GARSTANGS#BL11DU,1407727,"79,312.50"
Ministry of Justice,HMCS,19-Nov-10,AU999-National Taxing Teams,226000-Court Costs,HODGE JONES & ALLEN#DX 2101,1407647,"56,579.43"
Ministry of Justice,HMCS,19-Nov-10,AU999-National Taxing Teams,226000-Court Costs,MESSRS WARD HADAWAY#DX 730360,248012,"317,532.78"
Ministry of Justice,HMCS,19-Nov-10,AU999-National Taxing Teams,226000-Court Costs,MESSRS BYRNE & PARTNERS,247614,"73,781.80"
Ministry of Justice,HMCS,19-Nov-10,AU999-National Taxing Teams,226000-Court Costs,MARK REDLER & CO#DX 14553,247537,"25,668.62"
Ministry of Justice,HMCS,19-Nov-10,AU999-National Taxing Teams,226000-Court Costs,MESSRS GEORGE HAWKS#TA11 7EL,247710,"25,120.22"
Ministry of Justice,HMCS,19-Nov-10,AU999-National Taxing Teams,226000-Court Costs,GADD & PARTNERS#GL50 1TA,247497,"91,494.86"
Ministry of Justice,HMCS,03-Nov-10,AW999-Operations & Performance Dir.,226000-Court Costs,SIGN SOLUTIONS,1390488,"26,800.89"
Ministry of Justice,HMCS,05-Nov-10,AU999-National Taxing Teams,311200-Criminal Legal Aid,MESSRS T V EDWARDS LLP#DX 300700,1391709,"39,414.29"
Ministry of Justice,HMCS,05-Nov-10,AU999-National Taxing Teams,311200-Criminal Legal Aid,MESSRS RAHMAN RAVELLI#DX 16001,1391674,"82,459.65"
Ministry of Justice,HMCS,05-Nov-10,AU999-National Taxing Teams,311200-Criminal Legal Aid,MESSRS MALLIA & CO#DX 95401,236708,"34,460.40"
Ministry of Justice,HMCS,05-Nov-10,AU999-National Taxing Teams,311200-Criminal Legal Aid,MESSRS BARK & CO#DX 447,236393,"30,316.82"
Ministry of Justice,HMCS,05-Nov-10,AU999-National Taxing Teams,311200-Criminal Legal Aid,MESSRS NOBLE#DX 153444,1391655,"57,414.76"
Ministry of Justice,HMCS,05-Nov-10,AU999-National Taxing Teams,311200-Criminal Legal Aid,MESSRS L B & CO#DX 576,236677,"38,278.13"
Ministry of Justice,HMCS,05-Nov-10,AU999-National Taxing Teams,311200-Criminal Legal Aid,MESSRS MAURICE ANDREWS#DX24961,1391645,"109,952.53"
Ministry of Justice,HMCS,05-Nov-10,AU999-National Taxing Teams,311200-Criminal Legal Aid,MESSRS MELDRUM SOLICITORS LLP (ADVOCATES)#DX 6165,1391648,"41,612.16"
Ministry of Justice,HMCS,05-Nov-10,AU999-National Taxing Teams,311200-Criminal Legal Aid,MESSRS CENTRAL LAW PRACTICE#HA9 6DE,236459,"29,777.21"
Ministry of Justice,HMCS,19-Nov-10,AU999-National Taxing Teams,311200-Criminal Legal Aid,MESSRS SAMUEL & CO#DX 8500,247932,"121,672.01"
Ministry of Justice,HMCS,19-Nov-10,AU999-National Taxing Teams,311200-Criminal Legal Aid,MESSRS AHMED SOLICITORS#B19 1NH,247542,"143,088.19"
Ministry of Justice,HMCS,19-Nov-10,AU999-National Taxing Teams,311200-Criminal Legal Aid,FRISBY SOLICITORS LTD T/A FRISBY & CO#DX 14564,1407636,"33,561.83"
Ministry of Justice,HMCS,19-Nov-10,AU999-National Taxing Teams,311200-Criminal Legal Aid,MESSRS STOKOE PARTNERSHIP#DX 58205,1407825,"71,059.09"
Ministry of Justice,HMCS,19-Nov-10,AU999-National Taxing Teams,311200-Criminal Legal Aid,MESSRS ESHAGHIAN & CO#DX 57052,247677,"37,392.20"
Ministry of Justice,HMCS,19-Nov-10,AU999-National Taxing Teams,311200-Criminal Legal Aid,MESSRS BLACKFORDS LLP#DX2617,1407682,"62,891.95"
Ministry of Justice,HMCS,19-Nov-10,AU999-National Taxing Teams,311200-Criminal Legal Aid,MESSRS B H MOHAMMED#DX 707271,247559,"78,027.60"
Ministry of Justice,HMCS,19-Nov-10,AU999-National Taxing Teams,311200-Criminal Legal Aid,MESSRS TAIT FARRIER GRAHAM#DX60304,1407830,"29,937.23"
Ministry of Justice,HMCS,19-Nov-10,AU999-National Taxing Teams,311200-Criminal Legal Aid,MESSRS OPUS LAW#DX 11706,247877,"98,300.68"
Ministry of Justice,HMCS,24-Nov-10,DZ999-South West Region,532000-Tangible GBV - Additions,CABLE & WIRELESS GLOBAL CARD SERVICES,1412572,"76,972.73"
Ministry of Justice,HMCS,10-Nov-10,CZ999-South East Region,532000-Tangible GBV - Additions,POWERPERFECTOR PLC,1398885,"45,826.19"
Ministry of Justice,HMCS,26-Nov-10,BZ999-London Region,532000-Tangible GBV - Additions,RAPISCAN SYSTEMS LTD,1416172,"48,051.63"
Ministry of Justice,HMCS,26-Nov-10,BZ999-London Region,532000-Tangible GBV - Additions,EC HARRIS LLP,1415842,"26,661.08"
Ministry of Justice,HMCS,03-Nov-10,BZ999-London Region,532000-Tangible GBV - Additions,EC HARRIS LLP,1389865,"89,091.54"
Ministry of Justice,HMCS,03-Nov-10,EZ999-Wales Region,532000-Tangible GBV - Additions,WYG MANAGEMENT SERVICES LTD,1390702,"40,992.32"
Ministry of Justice,HMCS,05-Nov-10,FZ999-Midlands Region,532000-Tangible GBV - Additions,POINTER LTD,1393103,"47,807.20"
Ministry of Justice,HMCS,05-Nov-10,EZ999-Wales Region,532000-Tangible GBV - Additions,TURNER & TOWNSEND PROJECT MANAGEMENT,1393254,"47,773.70"
Ministry of Justice,HMCS,12-Nov-10,GZ999-North West Region,532000-Tangible GBV - Additions,HURD ROLLAND PARTNERSHIP,1400962,"30,530.21"
Ministry of Justice,HMCS,12-Nov-10,BZ999-London Region,532000-Tangible GBV - Additions,HURD ROLLAND PARTNERSHIP,1400962,"63,988.84"
Ministry of Justice,HMCS,12-Nov-10,BZ999-London Region,532000-Tangible GBV - Additions,TURNER & TOWNSEND PROJECT MANAGEMENT,1401319,"142,277.97"
Ministry of Justice,HMCS,17-Nov-10,EZ999-Wales Region,532000-Tangible GBV - Additions,DERYN PROPERTIES (INVESTMENTS) LLP,1405464,"205,977.39"
Ministry of Justice,HMCS,17-Nov-10,FZ999-Midlands Region,532000-Tangible GBV - Additions,POINTER LTD,1406595,"39,650.96"
Ministry of Justice,HMCS,17-Nov-10,CZ999-South East Region,532000-Tangible GBV - Additions,GALLIFORD TRY CONSTRUCTION LTD CENTRAL,1405561,"835,514.41"
Ministry of Justice,HMCS,17-Nov-10,CZ999-South East Region,532000-Tangible GBV - Additions,R&M CLARKSON LTD,1406621,"78,322.08"
Ministry of Justice,HMCS,17-Nov-10,CZ999-South East Region,532000-Tangible GBV - Additions,GALLIFORD TRY CONSTRUCTION LTD CENTRAL,1405561,"368,092.02"
Ministry of Justice,HMCS,19-Nov-10,FZ999-Midlands Region,532000-Tangible GBV - Additions,BDS FIRE & SECURITY LTD,1408036,"32,527.81"
Ministry of Justice,HMCS,19-Nov-10,GZ999-North West Region,532000-Tangible GBV - Additions,CSH ELECTRICAL LTD,1408135,"31,158.94"
Ministry of Justice,HMCS,19-Nov-10,HZ999-North East and Yorkshire,532000-Tangible GBV - Additions,HONEYWELL CONTROL SYSTEMS LTD,1408254,"37,395.61"
Ministry of Justice,HMCS,03-Nov-10,BZ999-London Region,532000-Tangible GBV - Additions,NORLAND MANAGED SERVICES LTD,1390299,"47,619.23"
Ministry of Justice,HMCS,05-Nov-10,DZ999-South West Region,532000-Tangible GBV - Additions,STRUCTURA UK LIMITED,1393208,"256,570.52"
Ministry of Justice,HMCS,10-Nov-10,BZ999-London Region,532000-Tangible GBV - Additions,GEOFFREY OSBORNE LTD,1397772,"411,250.59"
Ministry of Justice,HMCS,10-Nov-10,BZ999-London Region,532000-Tangible GBV - Additions,LAING O'ROURKE CONSTRUCTION SOUTH LTD,1397945,"2,453,879.40"
Ministry of Justice,HMCS,10-Nov-10,HZ999-North East and Yorkshire,532000-Tangible GBV - Additions,VEST CONSTRUCTION (LIVECO LTD),1399104,"33,688.85"
Ministry of Justice,HMCS,10-Nov-10,EZ999-Wales Region,532000-Tangible GBV - Additions,HENSTAFF CONSTRUCTION LTD,1397837,"48,529.34"
Ministry of Justice,HMCS,12-Nov-10,BZ999-London Region,532000-Tangible GBV - Additions,MITIE TECHNICAL FACILITIES MANAGEMENT LTD,1401096,"83,689.61"
Ministry of Justice,HMCS,12-Nov-10,BZ999-London Region,532000-Tangible GBV - Additions,BRITSPACE MODULAR BUILDINGS LIMITED,1400707,"751,352.23"
Ministry of Justice,HMCS,12-Nov-10,FZ999-Midlands Region,532000-Tangible GBV - Additions,JAMES M GREEN & CO LTD,1400980,"75,200.00"
Ministry of Justice,HMCS,12-Nov-10,GZ999-North West Region,532000-Tangible GBV - Additions,MANCHESTER & CHESHIRE CONSTRUCTION CO LTD,1401057,"166,070.66"
Ministry of Justice,HMCS,12-Nov-10,GZ999-North West Region,532000-Tangible GBV - Additions,CMB ENGINEERING,1400765,"66,379.13"
Ministry of Justice,HMCS,12-Nov-10,GZ999-North West Region,532000-Tangible GBV - Additions,ISG REGIONS LTD,1400975,"94,092.83"
Ministry of Justice,HMCS,12-Nov-10,HZ999-North East and Yorkshire,532000-Tangible GBV - Additions,STRATEGIC TEAM MAINTENANCE CO LTD,1401275,"52,424.89"
Ministry of Justice,HMCS,12-Nov-10,EZ999-Wales Region,532000-Tangible GBV - Additions,KIER BUILDING SERVICES ENG,242932,"29,053.56"
Ministry of Justice,HMCS,17-Nov-10,GZ999-North West Region,532000-Tangible GBV - Additions,CMB ENGINEERING,1405394,"34,371.03"
Ministry of Justice,HMCS,19-Nov-10,FZ999-Midlands Region,532000-Tangible GBV - Additions,AXIS ELEVATORS LTD,1408015,"31,448.64"
Ministry of Justice,HMCS,19-Nov-10,EZ999-Wales Region,532000-Tangible GBV - Additions,JCW (WALES) AIR CONDITIONING,1408281,"35,250.00"
Ministry of Justice,HMCS,24-Nov-10,CZ999-South East Region,532000-Tangible GBV - Additions,PROCARE BUILDING SERVICES LTD,1413966,"54,050.00"
Ministry of Justice,HMCS,24-Nov-10,EZ999-Wales Region,532000-Tangible GBV - Additions,R L DAVIES & SON LTD,1413975,"63,017.28"
Ministry of Justice,HMCS,24-Nov-10,EZ999-Wales Region,532000-Tangible GBV - Additions,R L DAVIES & SON LTD,1413975,"111,028.76"
Ministry of Justice,HMCS,24-Nov-10,GZ999-North West Region,532000-Tangible GBV - Additions,BAILEY MAINTENANCE LTD,1412495,"32,747.44"
Ministry of Justice,HMCS,24-Nov-10,DZ999-South West Region,532000-Tangible GBV - Additions,CEI ELECTRICAL LTD,1412597,"25,868.87"
Ministry of Justice,HMCS,26-Nov-10,HZ999-North East and Yorkshire,532000-Tangible GBV - Additions,DIMESTAGE (CONSTRUCTION COMPANY) LTD (DCC),1415821,"56,919.44"
Ministry of Justice,HMCS,05-Nov-10,AV329-CP-Mag. Courts Operational Bus.sys,532000-Tangible GBV - Additions,LOGICA UK LTD,1392299,"38,348.48"
Ministry of Justice,HMCS,12-Nov-10,AV322-CP Change Management SUPS,532000-Tangible GBV - Additions,LOGICA UK LTD,1401041,"38,993.50"
Ministry of Justice,HMCS,26-Nov-10,AV329-CP-Mag. Courts Operational Bus.sys,532000-Tangible GBV - Additions,LOGICA UK LTD,1416030,"146,209.29"
Ministry of Justice,HMCS,26-Nov-10,AV329-CP-Mag. Courts Operational Bus.sys,532000-Tangible GBV - Additions,LOGICA UK LTD,1416030,"133,388.73"
Ministry of Justice,HMCS,26-Nov-10,AV329-CP-Mag. Courts Operational Bus.sys,532000-Tangible GBV - Additions,LOGICA UK LTD,1416030,"38,348.48"
Ministry of Justice,HMCS,26-Nov-10,AV329-CP-Mag. Courts Operational Bus.sys,532000-Tangible GBV - Additions,LOGICA UK LTD,1416030,"49,624.95"
Ministry of Justice,HMCS,26-Nov-10,AV329-CP-Mag. Courts Operational Bus.sys,532000-Tangible GBV - Additions,LOGICA UK LTD,1416030,"59,341.13"
Ministry of Justice,HMCS,17-Nov-10,GZ999-North West Region,532000-Tangible GBV - Additions,ATOS ORIGIN IT SERVICES UK LTD,1405233,"120,811.15"
Ministry of Justice,HMCS,05-Nov-10,AV322-CP Change Management SUPS,512000-Intangible GBV - Additions,LOGICA UK LTD,1392299,"34,990.33"
Ministry of Justice,HMCS,05-Nov-10,AV322-CP Change Management SUPS,512000-Intangible GBV - Additions,LOGICA UK LTD,1392299,"59,261.13"
Ministry of Justice,HMCS,10-Nov-10,AV322-CP Change Management SUPS,512000-Intangible GBV - Additions,LOGICA UK LTD,1397970,"97,688.48"
Ministry of Justice,HMCS,24-Nov-10,AV322-CP Change Management SUPS,512000-Intangible GBV - Additions,LOGICA UK LTD,1412953,"118,028.16"
Ministry of Justice,HMCS,10-Nov-10,GZ999-North West Region,610300-Debtors < 1 Year - Deposits & Advances,NEOPOST LTD,1398063,"105,750.00"
Ministry of Justice,HMCS,12-Nov-10,GZ999-North West Region,610300-Debtors < 1 Year - Deposits & Advances,NEOPOST LTD,1401114,"125,800.00"
Ministry of Justice,HMCS,19-Nov-10,GZ999-North West Region,610300-Debtors < 1 Year - Deposits & Advances,NEOPOST LTD,1408391,"147,849.00"
Ministry of Justice,HMCS,05-Nov-10,FZ999-Midlands Region,610400-Debtors <1 year - Prepayments & Accrued Income,HEREFORDSHIRE COUNCIL,1392208,"76,434.94"
Ministry of Justice,HMCS,10-Nov-10,GZ999-North West Region,610400-Debtors <1 year - Prepayments & Accrued Income,HMRC,1397854,"25,967.60"
Ministry of Justice,HMCS,12-Nov-10,FZ999-Midlands Region,610400-Debtors <1 year - Prepayments & Accrued Income,WOLVERHAMPTON CITY COUNCIL,1401357,"95,100.31"
Ministry of Justice,HMCS,12-Nov-10,FZ999-Midlands Region,610400-Debtors <1 year - Prepayments & Accrued Income,WOLVERHAMPTON CITY COUNCIL,1401357,"95,100.31"
Ministry of Justice,HMCS,12-Nov-10,CZ999-South East Region,610400-Debtors <1 year - Prepayments & Accrued Income,HMRC,1400945,"50,143.01"
Ministry of Justice,HMCS,17-Nov-10,GZ999-North West Region,610400-Debtors <1 year - Prepayments & Accrued Income,LANCASHIRE POLICE AUTHORITY,1405781,"101,969.04"
Ministry of Justice,HMCS,17-Nov-10,HZ999-North East and Yorkshire,610400-Debtors <1 year - Prepayments & Accrued Income,BNP PARIBAS REAL ESTATE,1405292,"40,156.94"
Ministry of Justice,HMCS,17-Nov-10,CZ999-South East Region,610400-Debtors <1 year - Prepayments & Accrued Income,HMRC,1405670,"41,621.57"
Ministry of Justice,HMCS,23-Nov-10,DZ999-South West Region,610400-Debtors <1 year - Prepayments & Accrued Income,WINCHESTER CITY COUNCIL,1410381,"32,093.28"
Ministry of Justice,HMCS,23-Nov-10,IZ999-RCJ Group,610400-Debtors <1 year - Prepayments & Accrued Income,LEEDS CITY COUNCIL,1410236,"39,951.00"
Ministry of Justice,HMCS,23-Nov-10,EZ999-Wales Region,610400-Debtors <1 year - Prepayments & Accrued Income,PEMBROKESHIRE COUNTY COUNCIL,1410299,"140,540.21"
Ministry of Justice,HMCS,23-Nov-10,FZ999-Midlands Region,610400-Debtors <1 year - Prepayments & Accrued Income,CITY OF LINCOLN COUNCIL,1410157,"177,204.91"
Ministry of Justice,HMCS,23-Nov-10,GZ999-North West Region,610400-Debtors <1 year - Prepayments & Accrued Income,HALTON BOROUGH COUNCIL,1410215,"32,438.34"
Ministry of Justice,HMCS,23-Nov-10,HZ999-North East and Yorkshire,610400-Debtors <1 year - Prepayments & Accrued Income,NORTH LINCOLNSHIRE COUNCIL,1410288,"64,832.47"
Ministry of Justice,HMCS,23-Nov-10,CZ999-South East Region,610400-Debtors <1 year - Prepayments & Accrued Income,WEST BERKSHIRE DISTRICT COUNCIL,1410372,"90,501.35"
Ministry of Justice,HMCS,23-Nov-10,HZ999-North East and Yorkshire,610400-Debtors <1 year - Prepayments & Accrued Income,HARROGATE BOROUGH COUNCIL,1410219,"42,320.11"
Ministry of Justice,HMCS,23-Nov-10,HZ999-North East and Yorkshire,610400-Debtors <1 year - Prepayments & Accrued Income,NORTH LINCOLNSHIRE COUNCIL,1410288,"79,769.63"
Ministry of Justice,HMCS,23-Nov-10,HZ999-North East and Yorkshire,610400-Debtors <1 year - Prepayments & Accrued Income,HULL CITY COUNCIL,1410226,"28,773.00"
Ministry of Justice,HMCS,23-Nov-10,BZ999-London Region,610400-Debtors <1 year - Prepayments & Accrued Income,CROYDON COUNCIL,1410175,"65,534.00"
Ministry of Justice,HMCS,23-Nov-10,BZ999-London Region,610400-Debtors <1 year - Prepayments & Accrued Income,CROYDON COUNCIL,1410175,"35,788.39"
Ministry of Justice,HMCS,23-Nov-10,CZ999-South East Region,610400-Debtors <1 year - Prepayments & Accrued Income,CANTERBURY CITY COUNCIL,1410142,"36,787.48"
Ministry of Justice,HMCS,23-Nov-10,FZ999-Midlands Region,610400-Debtors <1 year - Prepayments & Accrued Income,NORTHAMPTON BOROUGH COUNCIL,1410293,"35,190.00"
Ministry of Justice,HMCS,23-Nov-10,CZ999-South East Region,610400-Debtors <1 year - Prepayments & Accrued Income,READING BOROUGH COUNCIL,1410306,"43,982.20"
Ministry of Justice,HMCS,23-Nov-10,HZ999-North East and Yorkshire,610400-Debtors <1 year - Prepayments & Accrued Income,LEEDS CITY COUNCIL,1410236,"46,368.00"
Ministry of Justice,HMCS,23-Nov-10,HZ999-North East and Yorkshire,610400-Debtors <1 year - Prepayments & Accrued Income,LEEDS CITY COUNCIL,1410236,"60,030.00"
Ministry of Justice,HMCS,23-Nov-10,FZ999-Midlands Region,610400-Debtors <1 year - Prepayments & Accrued Income,BIRMINGHAM CITY COUNCIL,1410116,"27,372.26"
Ministry of Justice,HMCS,23-Nov-10,FZ999-Midlands Region,610400-Debtors <1 year - Prepayments & Accrued Income,BIRMINGHAM CITY COUNCIL,1410116,"128,977.16"
Ministry of Justice,HMCS,23-Nov-10,FZ999-Midlands Region,610400-Debtors <1 year - Prepayments & Accrued Income,BIRMINGHAM CITY COUNCIL,1410116,"42,941.31"
Ministry of Justice,HMCS,23-Nov-10,FZ999-Midlands Region,610400-Debtors <1 year - Prepayments & Accrued Income,WOLVERHAMPTON CITY COUNCIL,1410383,"35,067.92"
Ministry of Justice,HMCS,23-Nov-10,IZ999-RCJ Group,610400-Debtors <1 year - Prepayments & Accrued Income,CITY OF WESTMINSTER,1410160,"295,306.71"
Ministry of Justice,HMCS,23-Nov-10,BZ999-London Region,610400-Debtors <1 year - Prepayments & Accrued Income,CITY OF WESTMINSTER,1410160,"43,556.42"
Ministry of Justice,HMCS,23-Nov-10,BZ999-London Region,610400-Debtors <1 year - Prepayments & Accrued Income,CITY OF WESTMINSTER,1410160,"28,918.46"
Ministry of Justice,HMCS,23-Nov-10,BZ999-London Region,610400-Debtors <1 year - Prepayments & Accrued Income,CITY OF WESTMINSTER,1410160,"44,268.00"
Ministry of Justice,HMCS,23-Nov-10,BZ999-London Region,610400-Debtors <1 year - Prepayments & Accrued Income,CITY OF WESTMINSTER,1410160,"28,825.58"
Ministry of Justice,HMCS,23-Nov-10,CZ999-South East Region,610400-Debtors <1 year - Prepayments & Accrued Income,BASILDON DISTRICT COUNCIL,1410111,"31,878.00"
Ministry of Justice,HMCS,23-Nov-10,DZ999-South West Region,610400-Debtors <1 year - Prepayments & Accrued Income,BOURNEMOUTH BOROUGH COUNCIL,1410128,"36,639.00"
Ministry of Justice,HMCS,23-Nov-10,HZ999-North East and Yorkshire,610400-Debtors <1 year - Prepayments & Accrued Income,BRADFORD METROPOLITAN COUNCIL,1410130,"50,922.00"
Ministry of Justice,HMCS,23-Nov-10,DZ999-South West Region,610400-Debtors <1 year - Prepayments & Accrued Income,BRISTOL CITY COUNCIL,1410135,"66,240.00"
Ministry of Justice,HMCS,23-Nov-10,DZ999-South West Region,610400-Debtors <1 year - Prepayments & Accrued Income,BRISTOL CITY COUNCIL,1410135,"45,540.00"
Ministry of Justice,HMCS,23-Nov-10,EZ999-Wales Region,610400-Debtors <1 year - Prepayments & Accrued Income,CARDIFF COUNTY COUNCIL,1410143,"33,333.50"
Ministry of Justice,HMCS,23-Nov-10,DZ999-South West Region,610400-Debtors <1 year - Prepayments & Accrued Income,EXETER CITY COUNCIL,1410205,"41,193.00"
Ministry of Justice,HMCS,23-Nov-10,GZ999-North West Region,610400-Debtors <1 year - Prepayments & Accrued Income,LIVERPOOL CITY COUNCIL,1410239,"66,654.00"
Ministry of Justice,HMCS,23-Nov-10,GZ999-North West Region,610400-Debtors <1 year - Prepayments & Accrued Income,LIVERPOOL CITY COUNCIL,1410239,"130,978.18"
Ministry of Justice,HMCS,23-Nov-10,BZ999-London Region,610400-Debtors <1 year - Prepayments & Accrued Income,LONDON BOROUGH OF ISLINGTON,1410254,"47,306.00"
Ministry of Justice,HMCS,23-Nov-10,BZ999-London Region,610400-Debtors <1 year - Prepayments & Accrued Income,LONDON BOROUGH OF SOUTHWARK,1410260,"42,098.00"
Ministry of Justice,HMCS,23-Nov-10,BZ999-London Region,610400-Debtors <1 year - Prepayments & Accrued Income,LONDON BOROUGH OF SOUTHWARK,1410260,"109,142.32"
Ministry of Justice,HMCS,23-Nov-10,BZ999-London Region,610400-Debtors <1 year - Prepayments & Accrued Income,LONDON BOROUGH OF SOUTHWARK,1410260,"81,938.46"
Ministry of Justice,HMCS,23-Nov-10,BZ999-London Region,610400-Debtors <1 year - Prepayments & Accrued Income,LONDON BOROUGH OF SOUTHWARK,1410260,"50,578.68"
Ministry of Justice,HMCS,23-Nov-10,CZ999-South East Region,610400-Debtors <1 year - Prepayments & Accrued Income,MAIDSTONE BOROUGH COUNCIL,1410265,"57,487.22"
Ministry of Justice,HMCS,23-Nov-10,FZ999-Midlands Region,610400-Debtors <1 year - Prepayments & Accrued Income,DERBY CITY COUNCIL,1410181,"26,082.00"
Ministry of Justice,HMCS,23-Nov-10,CZ999-South East Region,610400-Debtors <1 year - Prepayments & Accrued Income,CHELMSFORD BOROUGH COUNCIL,1410148,"30,076.72"
Ministry of Justice,HMCS,23-Nov-10,CZ999-South East Region,610400-Debtors <1 year - Prepayments & Accrued Income,CHELMSFORD BOROUGH COUNCIL,1410148,"25,541.46"
Ministry of Justice,HMCS,23-Nov-10,FZ999-Midlands Region,610400-Debtors <1 year - Prepayments & Accrued Income,CITY OF STOKE ON TRENT,1410159,"31,709.03"
Ministry of Justice,HMCS,23-Nov-10,IZ999-RCJ Group,610400-Debtors <1 year - Prepayments & Accrued Income,LONDON BOROUGH OF CAMDEN,1410245,"131,896.33"
Ministry of Justice,HMCS,23-Nov-10,IZ999-RCJ Group,610400-Debtors <1 year - Prepayments & Accrued Income,CITY OF LONDON,1410158,"32,631.00"
Ministry of Justice,HMCS,23-Nov-10,DZ999-South West Region,610400-Debtors <1 year - Prepayments & Accrued Income,WINCHESTER CITY COUNCIL,1410381,"39,537.00"
Ministry of Justice,HMCS,23-Nov-10,HZ999-North East and Yorkshire,610400-Debtors <1 year - Prepayments & Accrued Income,MIDDLESBROUGH COUNCIL,1410274,"58,374.00"
Ministry of Justice,HMCS,23-Nov-10,HZ999-North East and Yorkshire,610400-Debtors <1 year - Prepayments & Accrued Income,MIDDLESBROUGH COUNCIL,1410274,"27,338.02"
Ministry of Justice,HMCS,23-Nov-10,HZ999-North East and Yorkshire,610400-Debtors <1 year - Prepayments & Accrued Income,NEWCASTLE UPON TYNE CITY COUNCIL,1410282,"61,272.00"
Ministry of Justice,HMCS,23-Nov-10,CZ999-South East Region,610400-Debtors <1 year - Prepayments & Accrued Income,NORWICH CITY COUNCIL,1410295,"27,324.00"
Ministry of Justice,HMCS,23-Nov-10,DZ999-South West Region,610400-Debtors <1 year - Prepayments & Accrued Income,PORTSMOUTH CITY COUNCIL,1410302,"40,487.58"
Ministry of Justice,HMCS,23-Nov-10,GZ999-North West Region,610400-Debtors <1 year - Prepayments & Accrued Income,PRESTON CITY COUNCIL,1410304,"50,821.70"
Ministry of Justice,HMCS,23-Nov-10,DZ999-South West Region,610400-Debtors <1 year - Prepayments & Accrued Income,SOUTHAMPTON CITY COUNCIL,1410340,"32,292.00"
Ministry of Justice,HMCS,23-Nov-10,DZ999-South West Region,610400-Debtors <1 year - Prepayments & Accrued Income,SOUTHAMPTON CITY COUNCIL,1410340,"36,035.82"
Ministry of Justice,HMCS,23-Nov-10,CZ999-South East Region,610400-Debtors <1 year - Prepayments & Accrued Income,ST ALBANS CITY & DISTRICT COUNCIL,1410343,"31,050.00"
Ministry of Justice,HMCS,23-Nov-10,FZ999-Midlands Region,610400-Debtors <1 year - Prepayments & Accrued Income,STAFFORD BOROUGH COUNCIL,1410345,"25,826.68"
Ministry of Justice,HMCS,23-Nov-10,FZ999-Midlands Region,610400-Debtors <1 year - Prepayments & Accrued Income,COVENTRY CITY COUNCIL,1410172,"27,118.04"
Ministry of Justice,HMCS,23-Nov-10,HZ999-North East and Yorkshire,610400-Debtors <1 year - Prepayments & Accrued Income,SHEFFIELD CITY COUNCIL,1410325,"69,552.00"
Ministry of Justice,HMCS,23-Nov-10,HZ999-North East and Yorkshire,610400-Debtors <1 year - Prepayments & Accrued Income,SHEFFIELD CITY COUNCIL,1410325,"37,467.00"
Ministry of Justice,HMCS,23-Nov-10,BZ999-London Region,610400-Debtors <1 year - Prepayments & Accrued Income,LONDON BOROUGH OF BRENT,1410243,"37,243.10"
Ministry of Justice,HMCS,23-Nov-10,BZ999-London Region,610400-Debtors <1 year - Prepayments & Accrued Income,LONDON BOROUGH OF HARROW,1410250,"47,107.58"
Ministry of Justice,HMCS,23-Nov-10,BZ999-London Region,610400-Debtors <1 year - Prepayments & Accrued Income,LONDON BOROUGH OF HAMMERSMITH & FULHAM,1410248,"43,147.20"
Ministry of Justice,HMCS,23-Nov-10,CZ999-South East Region,610400-Debtors <1 year - Prepayments & Accrued Income,LUTON BOROUGH COUNCIL,1410264,"31,277.58"
Ministry of Justice,HMCS,23-Nov-10,BZ999-London Region,610400-Debtors <1 year - Prepayments & Accrued Income,LONDON BOROUGH OF BROMLEY,1410244,"32,333.00"
Ministry of Justice,HMCS,23-Nov-10,BZ999-London Region,610400-Debtors <1 year - Prepayments & Accrued Income,ROYAL BOROUGH OF KINGSTON UPON THAMES,1410314,"87,556.86"
Ministry of Justice,HMCS,23-Nov-10,BZ999-London Region,610400-Debtors <1 year - Prepayments & Accrued Income,LONDON BOROUGH OF HARINGEY,1410249,"51,646.00"
Ministry of Justice,HMCS,23-Nov-10,BZ999-London Region,610400-Debtors <1 year - Prepayments & Accrued Income,LONDON BOROUGH OF HOUNSLOW,1410253,"60,799.30"
Ministry of Justice,HMCS,23-Nov-10,BZ999-London Region,610400-Debtors <1 year - Prepayments & Accrued Income,LONDON BOROUGH OF GREENWICH,1410247,"63,780.52"
Ministry of Justice,HMCS,23-Nov-10,BZ999-London Region,610400-Debtors <1 year - Prepayments & Accrued Income,LONDON BOROUGH OF NEWHAM,1410257,"30,380.00"
Ministry of Justice,HMCS,23-Nov-10,BZ999-London Region,610400-Debtors <1 year - Prepayments & Accrued Income,LONDON BOROUGH OF REDBRIDGE,1410258,"43,379.98"
Ministry of Justice,HMCS,23-Nov-10,BZ999-London Region,610400-Debtors <1 year - Prepayments & Accrued Income,LONDON BOROUGH OF TOWER HAMLETS,1410262,"40,820.00"
Ministry of Justice,HMCS,23-Nov-10,GZ999-North West Region,610400-Debtors <1 year - Prepayments & Accrued Income,MANCHESTER CITY COUNCIL,1410266,"50,094.00"
Ministry of Justice,HMCS,23-Nov-10,GZ999-North West Region,610400-Debtors <1 year - Prepayments & Accrued Income,MANCHESTER CITY COUNCIL,1410266,"49,266.00"
Ministry of Justice,HMCS,23-Nov-10,GZ999-North West Region,610400-Debtors <1 year - Prepayments & Accrued Income,MANCHESTER CITY COUNCIL,1410266,"198,420.48"
Ministry of Justice,HMCS,23-Nov-10,CZ999-South East Region,610400-Debtors <1 year - Prepayments & Accrued Income,OXFORD CITY COUNCIL,1410298,"27,354.76"
Ministry of Justice,HMCS,23-Nov-10,FZ999-Midlands Region,610400-Debtors <1 year - Prepayments & Accrued Income,NOTTINGHAM CITY COUNCIL,249486,"33,327.00"
Ministry of Justice,HMCS,23-Nov-10,FZ999-Midlands Region,610400-Debtors <1 year - Prepayments & Accrued Income,NOTTINGHAM CITY COUNCIL,249486,"64,170.00"
Ministry of Justice,HMCS,23-Nov-10,FZ999-Midlands Region,610400-Debtors <1 year - Prepayments & Accrued Income,LEICESTER CITY COUNCIL,1410237,"29,601.00"
Ministry of Justice,HMCS,30-Nov-10,WW000-Balance Sheet,611000-Debtors <1 year - Other Debtors,ABERDEEN PROPERTY INVESTORS,1418069,"74,575.02"
Ministry of Justice,HMCS,19-Nov-10,WW000-Balance Sheet,710100-Creditors < 1 year - Other Taxation & Social Security,HMRC,1014,"3,738,380.93"
Ministry of Justice,HMCS,19-Nov-10,WW000-Balance Sheet,710100-Creditors < 1 year - Other Taxation & Social Security,HMRC,1021,"845,038.43"
Ministry of Justice,HMCS,19-Nov-10,WW000-Balance Sheet,710100-Creditors < 1 year - Other Taxation & Social Security,HMRC,1018,"2,970,213.53"
Ministry of Justice,HMCS,19-Nov-10,WW000-Balance Sheet,710100-Creditors < 1 year - Other Taxation & Social Security,HMRC,1020,"539,689.62"
Ministry of Justice,HMCS,19-Nov-10,WW000-Balance Sheet,710100-Creditors < 1 year - Other Taxation & Social Security,HMRC,1019,"2,526,655.52"
Ministry of Justice,HMCS,19-Nov-10,WW000-Balance Sheet,710100-Creditors < 1 year - Other Taxation & Social Security,HMRC,1015,"2,688,943.63"
Ministry of Justice,HMCS,10-Nov-10,IZ999-RCJ Group,710800-Creditor <1 yr - Third Party Monies,THE OFFICIAL RECEIVER,239157,"104,430.00"
Ministry of Justice,HMCS,10-Nov-10,IZ999-RCJ Group,710800-Creditor <1 yr - Third Party Monies,THE OFFICIAL RECEIVER,239158,"92,660.00"
Ministry of Justice,HMCS,04-Nov-10,FZ999-Midlands Region,710800-Creditor <1 yr - Third Party Monies,ONE TIME CAPS,236123,"28,517.57"
Ministry of Justice,HMCS,04-Nov-10,FZ999-Midlands Region,710800-Creditor <1 yr - Third Party Monies,ONE TIME CAPS,235428,"30,266.17"
Ministry of Justice,HMCS,04-Nov-10,FZ999-Midlands Region,710800-Creditor <1 yr - Third Party Monies,ONE TIME CAPS,234422,"41,248.62"
Ministry of Justice,HMCS,11-Nov-10,FZ999-Midlands Region,710800-Creditor <1 yr - Third Party Monies,ONE TIME CAPS,241880,"26,330.03"
Ministry of Justice,HMCS,11-Nov-10,FZ999-Midlands Region,710800-Creditor <1 yr - Third Party Monies,ONE TIME CAPS,240711,"41,608.60"
Ministry of Justice,HMCS,11-Nov-10,FZ999-Midlands Region,710800-Creditor <1 yr - Third Party Monies,ONE TIME CAPS,242614,"30,634.45"
Ministry of Justice,HMCS,18-Nov-10,FZ999-Midlands Region,710800-Creditor <1 yr - Third Party Monies,ONE TIME CAPS,247283,"28,008.80"
Ministry of Justice,HMCS,18-Nov-10,FZ999-Midlands Region,710800-Creditor <1 yr - Third Party Monies,ONE TIME CAPS,245598,"42,189.72"
Ministry of Justice,HMCS,25-Nov-10,FZ999-Midlands Region,710800-Creditor <1 yr - Third Party Monies,ONE TIME CAPS,251779,"49,069.28"
Ministry of Justice,HMCS,25-Nov-10,FZ999-Midlands Region,710800-Creditor <1 yr - Third Party Monies,ONE TIME CAPS,253598,"27,279.38"
Ministry of Justice,HMCS,25-Nov-10,FZ999-Midlands Region,710800-Creditor <1 yr - Third Party Monies,ONE TIME CAPS,252924,"33,869.92"
Ministry of Justice,HMCS,25-Nov-10,FZ999-Midlands Region,710800-Creditor <1 yr - Third Party Monies,ONE TIME CAPS,253712,"32,961.01"
Ministry of Justice,HMCS,02-Nov-10,IZ999-RCJ Group,311200-Criminal Legal Aid,CARTWRIGHT KING#IE41310605,232469,"33,746.31"
Ministry of Justice,HMCS,11-Nov-10,AR999-HMCS Central Budgets,710700-Payable to Other Government Departments,HOME OFFICE GENERAL CASH ACCOUNT#AR10110241,1013,"23,564,908.29"
Ministry of Justice,MoJ HQ,04-Nov-10,ZZ900-MoJ HQ,212001-Agency staff,PARITY RESOURCES LTD,1033197,"26,486.11"
Ministry of Justice,MoJ HQ,08-Nov-10,ZZ900-MoJ HQ,212001-Agency staff,CONCERTO CONSULTING,1033310,"52,155.31"
Ministry of Justice,MoJ HQ,11-Nov-10,ZZ900-MoJ HQ,212001-Agency staff,VEREDUS INTERIM MANAGEMENT,1033739,"25,227.25"
Ministry of Justice,MoJ HQ,11-Nov-10,ZZ900-MoJ HQ,212001-Agency staff,CONCERTO CONSULTING,1033568,"51,814.56"
Ministry of Justice,MoJ HQ,11-Nov-10,ZZ900-MoJ HQ,212001-Agency staff,ACTICA CONSULTING LTD,1033518,"25,908.75"
Ministry of Justice,MoJ HQ,15-Nov-10,ZZ900-MoJ HQ,212001-Agency staff,CAPGEMINI UK PLC,1033798,"26,437.50"
Ministry of Justice,MoJ HQ,29-Nov-10,ZZ900-MoJ HQ,212001-Agency staff,CENTRAL OFFICE OF INFORMATION (COI),1035061,"37,664.43"
Ministry of Justice,MoJ HQ,01-Nov-10,ZZ900-MoJ HQ,221000-Property Rent and Rates,HMRC,1032866,"35,570.06"
Ministry of Justice,MoJ HQ,08-Nov-10,ZZ900-MoJ HQ,221000-Property Rent and Rates,GVA GRIMLEY LLP,1033344,"28,223.21"
Ministry of Justice,MoJ HQ,22-Nov-10,ZZ900-MoJ HQ,221000-Property Rent and Rates,HMRC,1034499,"35,570.06"
Ministry of Justice,MoJ HQ,22-Nov-10,ZZ900-MoJ HQ,221000-Property Rent and Rates,BNP PARIBAS REAL ESTATE,1034426,"60,189.38"
Ministry of Justice,MoJ HQ,04-Nov-10,ZZ900-MoJ HQ,223000-Other Expenditure,ARVAL UK LTD,1033046,"39,353.78"
Ministry of Justice,MoJ HQ,04-Nov-10,ZZ900-MoJ HQ,223000-Other Expenditure,ARVAL UK LTD,1033045,"27,894.26"
Ministry of Justice,MoJ HQ,25-Nov-10,ZZ900-MoJ HQ,223000-Other Expenditure,RSA,1034975,"580,744.50"
Ministry of Justice,MoJ HQ,18-Nov-10,ZZ900-MoJ HQ,261000-Fuel and Utilities,EDF ENERGY LTD,1034153,"53,943.21"
Ministry of Justice,MoJ HQ,22-Nov-10,ZZ900-MoJ HQ,222002-Other Property Costs,CARLISLE SECURITY SERVICES LTD,1034438,"30,057.90"
Ministry of Justice,MoJ HQ,22-Nov-10,ZZ900-MoJ HQ,222002-Other Property Costs,CARLISLE SECURITY SERVICES LTD,1034438,"30,308.53"
Ministry of Justice,MoJ HQ,22-Nov-10,ZZ900-MoJ HQ,222002-Other Property Costs,CARLISLE SECURITY SERVICES LTD,1034438,"40,598.18"
Ministry of Justice,MoJ HQ,22-Nov-10,ZZ900-MoJ HQ,222002-Other Property Costs,CARLISLE SECURITY SERVICES LTD,1034438,"121,742.34"
Ministry of Justice,MoJ HQ,25-Nov-10,ZZ900-MoJ HQ,222002-Other Property Costs,CARLISLE SECURITY SERVICES LTD,1034790,"58,750.00"
Ministry of Justice,MoJ HQ,25-Nov-10,ZZ900-MoJ HQ,222002-Other Property Costs,CARLISLE SECURITY SERVICES LTD,1034790,"58,750.00"
Ministry of Justice,MoJ HQ,11-Nov-10,ZZ900-MoJ HQ,222002-Other Property Costs,LANCASTER OFFICE CLEANING CO LTD,1033633,"111,862.22"
Ministry of Justice,MoJ HQ,15-Nov-10,ZZ900-MoJ HQ,222002-Other Property Costs,CABLE & WIRELESS,1033795,"47,025.85"
Ministry of Justice,MoJ HQ,22-Nov-10,ZZ900-MoJ HQ,222002-Other Property Costs,HMRC,1034499,"124,470.55"
Ministry of Justice,MoJ HQ,22-Nov-10,ZZ900-MoJ HQ,222002-Other Property Costs,HMRC,1034499,"186,390.74"
Ministry of Justice,MoJ HQ,22-Nov-10,ZZ900-MoJ HQ,222001-Maintenance,KING STURGE LLP,1034514,"28,640.63"
Ministry of Justice,MoJ HQ,25-Nov-10,ZZ900-MoJ HQ,222001-Maintenance,M J FERGUSON LTD,1034905,"80,781.25"
Ministry of Justice,MoJ HQ,08-Nov-10,ZZ900-MoJ HQ,222001-Maintenance,M J FERGUSON LTD,1033378,"196,876.83"
Ministry of Justice,MoJ HQ,18-Nov-10,ZZ900-MoJ HQ,222001-Maintenance,POWERPERFECTOR PLC,1034273,"25,103.88"
Ministry of Justice,MoJ HQ,11-Nov-10,ZZ900-MoJ HQ,222001-Maintenance,ASSOCIATED SERVICES (ESSEX) LTD,1033532,"105,034.25"
Ministry of Justice,MoJ HQ,11-Nov-10,ZZ900-MoJ HQ,262000-SCA Costs,LAND SECURITIES PROPERTIES LTD,1033634,"3,543,984.75"
Ministry of Justice,MoJ HQ,22-Nov-10,ZZ900-MoJ HQ,262000-SCA Costs,HP ENTERPRISE SERVICES UK LTD,1034504,"56,000.50"
Ministry of Justice,MoJ HQ,18-Nov-10,ZZ900-MoJ HQ,262000-SCA Costs,NATIONAL SAVINGS & INVESTMENTS,1034254,"64,050.00"
Ministry of Justice,MoJ HQ,18-Nov-10,ZZ900-MoJ HQ,262000-SCA Costs,NATIONAL SAVINGS & INVESTMENTS,1034254,"210,808.00"
Ministry of Justice,MoJ HQ,22-Nov-10,ZZ900-MoJ HQ,262000-SCA Costs,LIBERATA UK LTD,1034526,"303,234.03"
Ministry of Justice,MoJ HQ,25-Nov-10,ZZ900-MoJ HQ,262000-SCA Costs,LIBERATA UK LTD,1034896,"51,346.41"
Ministry of Justice,MoJ HQ,22-Nov-10,ZZ900-MoJ HQ,262000-SCA Costs,LIBERATA UK LTD,1034526,"1,380,123.69"
Ministry of Justice,MoJ HQ,04-Nov-10,ZZ900-MoJ HQ,223000-Other Expenditure,WM ENTERPRISE,1033251,"39,143.80"
Ministry of Justice,MoJ HQ,11-Nov-10,ZZ900-MoJ HQ,223000-Other Expenditure,NATIONAL CENTRE FOR SOCIAL RESEARCH (NATCEN),1033667,"82,347.40"
Ministry of Justice,MoJ HQ,22-Nov-10,ZZ900-MoJ HQ,223000-Other Expenditure,NATIONAL CENTRE FOR SOCIAL RESEARCH (NATCEN),1034553,"51,232.26"
Ministry of Justice,MoJ HQ,25-Nov-10,ZZ900-MoJ HQ,223000-Other Expenditure,CABINET OFFICE,1034787,"87,391.44"
Ministry of Justice,MoJ HQ,11-Nov-10,ZZ900-MoJ HQ,223001-Printing Postage and Office expenditure,LIBERATA UK LTD,1033642,"32,638.86"
Ministry of Justice,MoJ HQ,11-Nov-10,ZZ900-MoJ HQ,223001-Printing Postage and Office expenditure,LIBERATA UK LTD,1033642,"67,982.42"
Ministry of Justice,MoJ HQ,15-Nov-10,ZZ900-MoJ HQ,223001-Printing Postage and Office expenditure,DX NETWORK SERVICES LTD,1033820,"44,550.79"
Ministry of Justice,MoJ HQ,04-Nov-10,ZZ900-MoJ HQ,263000-Other Contracted Out Services,CAPITA HARTSHEAD LTD,1033076,"49,364.55"
Ministry of Justice,MoJ HQ,01-Nov-10,ZZ900-MoJ HQ,265000-IT & Telecommunications,HEWLETT PACKARD LTD,1032863,"57,558.55"
Ministry of Justice,MoJ HQ,04-Nov-10,ZZ900-MoJ HQ,265000-IT & Telecommunications,STERIA LTD,1033228,"27,294.08"
Ministry of Justice,MoJ HQ,15-Nov-10,ZZ900-MoJ HQ,265000-IT & Telecommunications,STERIA LTD,1033965,"48,788.90"
Ministry of Justice,MoJ HQ,18-Nov-10,ZZ900-MoJ HQ,265000-IT & Telecommunications,IBM UNITED KINGDOM LTD,1034202,"249,474.88"
Ministry of Justice,MoJ HQ,22-Nov-10,ZZ900-MoJ HQ,265000-IT & Telecommunications,HEWLETT PACKARD LTD,1034497,"53,244.42"
Ministry of Justice,MoJ HQ,22-Nov-10,ZZ900-MoJ HQ,265000-IT & Telecommunications,NINIAN SOLUTIONS LTD,1034559,"32,900.00"
Ministry of Justice,MoJ HQ,25-Nov-10,ZZ900-MoJ HQ,265000-IT & Telecommunications,STERIA LTD,1034992,"229,234.28"
Ministry of Justice,MoJ HQ,01-Nov-10,ZZ900-MoJ HQ,265000-IT & Telecommunications,FUJITSU SERVICES LTD,1032846,"118,845.37"
Ministry of Justice,MoJ HQ,04-Nov-10,ZZ900-MoJ HQ,265000-IT & Telecommunications,FUJITSU SERVICES LTD,1033112,"171,076.46"
Ministry of Justice,MoJ HQ,04-Nov-10,ZZ900-MoJ HQ,265000-IT & Telecommunications,FUJITSU SERVICES LTD,1033112,"78,553.36"
Ministry of Justice,MoJ HQ,04-Nov-10,ZZ900-MoJ HQ,265000-IT & Telecommunications,FUJITSU SERVICES LTD,1033112,"341,170.45"
Ministry of Justice,MoJ HQ,04-Nov-10,ZZ900-MoJ HQ,265000-IT & Telecommunications,FUJITSU SERVICES LTD,1033112,"40,206.85"
Ministry of Justice,MoJ HQ,04-Nov-10,ZZ900-MoJ HQ,265000-IT & Telecommunications,FUJITSU SERVICES LTD,1033112,"130,889.53"
Ministry of Justice,MoJ HQ,04-Nov-10,ZZ900-MoJ HQ,265000-IT & Telecommunications,FUJITSU SERVICES LTD,1033112,"49,473.68"
Ministry of Justice,MoJ HQ,04-Nov-10,ZZ900-MoJ HQ,265000-IT & Telecommunications,FUJITSU SERVICES LTD,1033112,"32,274.46"
Ministry of Justice,MoJ HQ,04-Nov-10,ZZ900-MoJ HQ,265000-IT & Telecommunications,FUJITSU SERVICES LTD,1033112,"68,639.04"
Ministry of Justice,MoJ HQ,08-Nov-10,ZZ900-MoJ HQ,265000-IT & Telecommunications,HEWLETT PACKARD LTD,1033351,"27,787.28"
Ministry of Justice,MoJ HQ,08-Nov-10,ZZ900-MoJ HQ,265000-IT & Telecommunications,HEWLETT PACKARD LTD,1033351,"150,347.30"
Ministry of Justice,MoJ HQ,08-Nov-10,ZZ900-MoJ HQ,265000-IT & Telecommunications,HEWLETT PACKARD LTD,1033351,"94,389.71"
Ministry of Justice,MoJ HQ,18-Nov-10,ZZ900-MoJ HQ,265000-IT & Telecommunications,HEWLETT PACKARD LTD,1034186,"244,355.67"
Ministry of Justice,MoJ HQ,25-Nov-10,ZZ900-MoJ HQ,223000-Other Expenditure,CENTRAL OFFICE OF INFORMATION (COI),1034796,"28,783.14"
Ministry of Justice,MoJ HQ,04-Nov-10,ZZ900-MoJ HQ,223000-Other Expenditure,BARCELO HOTELS,1033055,"83,111.80"
Ministry of Justice,MoJ HQ,29-Nov-10,ZZ900-MoJ HQ,265000-IT & Telecommunications,VODAFONE CORPORATE LTD,1035219,"25,942.47"
Ministry of Justice,MoJ HQ,11-Nov-10,ZZ900-MoJ HQ,223000-Other Expenditure,TNT UK LTD,1033730,"43,333.12"
Ministry of Justice,MoJ HQ,04-Nov-10,ZZ900-MoJ HQ,265000-IT & Telecommunications,LOGICA UK LTD,1033161,"42,916.88"
Ministry of Justice,MoJ HQ,04-Nov-10,ZZ900-MoJ HQ,265000-IT & Telecommunications,LOGICA UK LTD,1033160,"26,009.21"
Ministry of Justice,MoJ HQ,04-Nov-10,ZZ900-MoJ HQ,265000-IT & Telecommunications,LOGICA UK LTD,1033160,"30,205.73"
Ministry of Justice,MoJ HQ,04-Nov-10,ZZ900-MoJ HQ,265000-IT & Telecommunications,LOGICA UK LTD,1033160,"26,011.56"
Ministry of Justice,MoJ HQ,04-Nov-10,ZZ900-MoJ HQ,265000-IT & Telecommunications,LOGICA UK LTD,1033160,"26,191.34"
Ministry of Justice,MoJ HQ,04-Nov-10,ZZ900-MoJ HQ,265000-IT & Telecommunications,LOGICA UK LTD,1033161,"37,305.08"
Ministry of Justice,MoJ HQ,08-Nov-10,ZZ900-MoJ HQ,265000-IT & Telecommunications,LOGICA UK LTD,1033376,"63,177.05"
Ministry of Justice,MoJ HQ,08-Nov-10,ZZ900-MoJ HQ,265000-IT & Telecommunications,LOGICA UK LTD,1033376,"59,944.98"
Ministry of Justice,MoJ HQ,08-Nov-10,ZZ900-MoJ HQ,265000-IT & Telecommunications,LOGICA UK LTD,1033375,"190,068.00"
Ministry of Justice,MoJ HQ,08-Nov-10,ZZ900-MoJ HQ,265000-IT & Telecommunications,LOGICA UK LTD,1033376,"52,461.92"
Ministry of Justice,MoJ HQ,08-Nov-10,ZZ900-MoJ HQ,265000-IT & Telecommunications,LOGICA UK LTD,1033376,"66,680.08"
Ministry of Justice,MoJ HQ,08-Nov-10,ZZ900-MoJ HQ,265000-IT & Telecommunications,LOGICA UK LTD,1033376,"189,645.58"
Ministry of Justice,MoJ HQ,08-Nov-10,ZZ900-MoJ HQ,265000-IT & Telecommunications,LOGICA UK LTD,1033376,"34,731.83"
Ministry of Justice,MoJ HQ,08-Nov-10,ZZ900-MoJ HQ,265000-IT & Telecommunications,LOGICA UK LTD,1033376,"40,897.05"
Ministry of Justice,MoJ HQ,08-Nov-10,ZZ900-MoJ HQ,265000-IT & Telecommunications,LOGICA UK LTD,1033376,"29,171.84"
Ministry of Justice,MoJ HQ,08-Nov-10,ZZ900-MoJ HQ,265000-IT & Telecommunications,LOGICA UK LTD,1033376,"230,781.75"
Ministry of Justice,MoJ HQ,08-Nov-10,ZZ900-MoJ HQ,265000-IT & Telecommunications,LOGICA UK LTD,1033376,"27,982.63"
Ministry of Justice,MoJ HQ,08-Nov-10,ZZ900-MoJ HQ,265000-IT & Telecommunications,LOGICA UK LTD,1033376,"149,663.28"
Ministry of Justice,MoJ HQ,08-Nov-10,ZZ900-MoJ HQ,265000-IT & Telecommunications,LOGICA UK LTD,1033376,"528,750.00"
Ministry of Justice,MoJ HQ,08-Nov-10,ZZ900-MoJ HQ,265000-IT & Telecommunications,LOGICA UK LTD,1033376,"36,490.22"
Ministry of Justice,MoJ HQ,08-Nov-10,ZZ900-MoJ HQ,265000-IT & Telecommunications,LOGICA UK LTD,1033376,"172,613.38"
Ministry of Justice,MoJ HQ,08-Nov-10,ZZ900-MoJ HQ,265000-IT & Telecommunications,LOGICA UK LTD,1033376,"41,881.99"
Ministry of Justice,MoJ HQ,08-Nov-10,ZZ900-MoJ HQ,265000-IT & Telecommunications,LOGICA UK LTD,1033376,"68,887.91"
Ministry of Justice,MoJ HQ,25-Nov-10,ZZ900-MoJ HQ,265000-IT & Telecommunications,LOGICA UK LTD,1034902,"472,559.15"
Ministry of Justice,MoJ HQ,25-Nov-10,ZZ900-MoJ HQ,265000-IT & Telecommunications,LOGICA UK LTD,1034902,"137,238.83"
Ministry of Justice,MoJ HQ,29-Nov-10,ZZ900-MoJ HQ,265000-IT & Telecommunications,LOGICA UK LTD,1035134,"411,569.60"
Ministry of Justice,MoJ HQ,29-Nov-10,ZZ900-MoJ HQ,265000-IT & Telecommunications,LOGICA UK LTD,1035134,"43,369.72"
Ministry of Justice,MoJ HQ,01-Nov-10,ZZ900-MoJ HQ,265000-IT & Telecommunications,ATOS ORIGIN IT SERVICES UK LTD,1032786,"769,204.35"
Ministry of Justice,MoJ HQ,01-Nov-10,ZZ900-MoJ HQ,265000-IT & Telecommunications,ATOS ORIGIN IT SERVICES UK LTD,1032786,"148,050.00"
Ministry of Justice,MoJ HQ,01-Nov-10,ZZ900-MoJ HQ,265000-IT & Telecommunications,ATOS ORIGIN IT SERVICES UK LTD,1032786,"1,095,423.13"
Ministry of Justice,MoJ HQ,01-Nov-10,ZZ900-MoJ HQ,265000-IT & Telecommunications,ATOS ORIGIN IT SERVICES UK LTD,1032786,"102,430.63"
Ministry of Justice,MoJ HQ,01-Nov-10,ZZ900-MoJ HQ,265000-IT & Telecommunications,ATOS ORIGIN IT SERVICES UK LTD,1032786,"453,177.53"
Ministry of Justice,MoJ HQ,01-Nov-10,ZZ900-MoJ HQ,265000-IT & Telecommunications,ATOS ORIGIN IT SERVICES UK LTD,1032786,"450,948.55"
Ministry of Justice,MoJ HQ,01-Nov-10,ZZ900-MoJ HQ,265000-IT & Telecommunications,ATOS ORIGIN IT SERVICES UK LTD,1032786,"32,461.68"
Ministry of Justice,MoJ HQ,01-Nov-10,ZZ900-MoJ HQ,265000-IT & Telecommunications,ATOS ORIGIN IT SERVICES UK LTD,1032786,"138,551.75"
Ministry of Justice,MoJ HQ,01-Nov-10,ZZ900-MoJ HQ,265000-IT & Telecommunications,ATOS ORIGIN IT SERVICES UK LTD,1032786,"338,590.35"
Ministry of Justice,MoJ HQ,01-Nov-10,ZZ900-MoJ HQ,265000-IT & Telecommunications,ATOS ORIGIN IT SERVICES UK LTD,1032786,"68,556.55"
Ministry of Justice,MoJ HQ,01-Nov-10,ZZ900-MoJ HQ,265000-IT & Telecommunications,ATOS ORIGIN IT SERVICES UK LTD,1032786,"390,383.18"
Ministry of Justice,MoJ HQ,01-Nov-10,ZZ900-MoJ HQ,265000-IT & Telecommunications,ATOS ORIGIN IT SERVICES UK LTD,1032786,"104,509.20"
Ministry of Justice,MoJ HQ,01-Nov-10,ZZ900-MoJ HQ,265000-IT & Telecommunications,ATOS ORIGIN IT SERVICES UK LTD,1032786,"28,388.00"
Ministry of Justice,MoJ HQ,04-Nov-10,ZZ900-MoJ HQ,265000-IT & Telecommunications,ATOS ORIGIN IT SERVICES UK LTD,1033048,"1,752,272.80"
Ministry of Justice,MoJ HQ,11-Nov-10,ZZ900-MoJ HQ,265000-IT & Telecommunications,ATOS ORIGIN IT SERVICES UK LTD,1033534,"70,500.00"
Ministry of Justice,MoJ HQ,11-Nov-10,ZZ900-MoJ HQ,265000-IT & Telecommunications,ATOS ORIGIN IT SERVICES UK LTD,1033534,"89,900.43"
Ministry of Justice,MoJ HQ,22-Nov-10,ZZ900-MoJ HQ,265000-IT & Telecommunications,ATOS ORIGIN IT SERVICES UK LTD,1034417,"131,639.01"
Ministry of Justice,MoJ HQ,25-Nov-10,ZZ900-MoJ HQ,265000-IT & Telecommunications,ATOS ORIGIN IT SERVICES UK LTD,1034768,"64,312.45"
Ministry of Justice,MoJ HQ,25-Nov-10,ZZ900-MoJ HQ,265000-IT & Telecommunications,ATOS ORIGIN IT SERVICES UK LTD,1034768,"30,158.34"
Ministry of Justice,MoJ HQ,25-Nov-10,ZZ900-MoJ HQ,265000-IT & Telecommunications,ATOS ORIGIN IT SERVICES UK LTD,1034768,"94,787.25"
Ministry of Justice,MoJ HQ,25-Nov-10,ZZ900-MoJ HQ,265000-IT & Telecommunications,ATOS ORIGIN IT SERVICES UK LTD,1034768,"25,439.93"
Ministry of Justice,MoJ HQ,25-Nov-10,ZZ900-MoJ HQ,265000-IT & Telecommunications,ATOS ORIGIN IT SERVICES UK LTD,1034768,"142,175.00"
Ministry of Justice,MoJ HQ,25-Nov-10,ZZ900-MoJ HQ,265000-IT & Telecommunications,ATOS ORIGIN IT SERVICES UK LTD,1034768,"43,083.34"
Ministry of Justice,MoJ HQ,25-Nov-10,ZZ900-MoJ HQ,265000-IT & Telecommunications,ATOS ORIGIN IT SERVICES UK LTD,1034768,"46,753.25"
Ministry of Justice,MoJ HQ,25-Nov-10,ZZ900-MoJ HQ,265000-IT & Telecommunications,ATOS ORIGIN IT SERVICES UK LTD,1034768,"34,341.73"
Ministry of Justice,MoJ HQ,29-Nov-10,ZZ900-MoJ HQ,265000-IT & Telecommunications,ATOS ORIGIN IT SERVICES UK LTD,1035035,"35,385.13"
Ministry of Justice,MoJ HQ,11-Nov-10,ZZ900-MoJ HQ,265000-IT & Telecommunications,LOGICA UK LTD,1033644,"77,095.28"
Ministry of Justice,MoJ HQ,11-Nov-10,ZZ900-MoJ HQ,265000-IT & Telecommunications,ATOS ORIGIN IT SERVICES UK LTD T/A ATOS HEALTHCARE,1033535,"65,233.65"
Ministry of Justice,MoJ HQ,11-Nov-10,ZZ900-MoJ HQ,265000-IT & Telecommunications,LOGICA UK LTD,1033644,"87,300.15"
Ministry of Justice,MoJ HQ,15-Nov-10,ZZ900-MoJ HQ,264000-Consultancy,ERNST & YOUNG LLP,1033826,"40,226.13"
Ministry of Justice,MoJ HQ,22-Nov-10,MZ999-Cabinet Office,264000-Consultancy,ESRI (UK) LTD,1034465,"32,888.25"
Ministry of Justice,MoJ HQ,18-Nov-10,ZZ900-MoJ HQ,264000-Consultancy,SERCO LTD,15128,"70,500.00"
Ministry of Justice,MoJ HQ,25-Nov-10,ZZ900-MoJ HQ,223000-Other Expenditure,HOME OFFICE,1034863,"42,300.00"
Ministry of Justice,MoJ HQ,04-Nov-10,ZZ900-MoJ HQ,266000-Judicial Costs,HAMMICKS LEGAL BOOKSHOPS,1033127,"161,562.50"
Ministry of Justice,MoJ HQ,03-Nov-10,ZZ900-MoJ HQ,245000-Grants in Aid to NDPBs,LEGAL SERVICES COMMISSION,6229,"10,700,000.00"
Ministry of Justice,MoJ HQ,05-Nov-10,ZZ900-MoJ HQ,246000-Current Grants,THE PAROLE BOARD,6232,"950,000.00"
Ministry of Justice,MoJ HQ,16-Nov-10,ZZ900-MoJ HQ,246000-Current Grants,CRIMINAL CASES REVIEW COMMISSION,6235,"590,000.00"
Ministry of Justice,MoJ HQ,15-Nov-10,MZ999-Cabinet Office,246000-Current Grants,WELSH ASSEMBLY GOVERNMENT,1033994,"64,892.49"
Ministry of Justice,MoJ HQ,25-Nov-10,ZZ900-MoJ HQ,246000-Current Grants,OPERATION BLACK VOTE,1034941,"70,000.00"
Ministry of Justice,MoJ HQ,05-Nov-10,ZZ900-MoJ HQ,245000-Grants in Aid to NDPBs,YOUTH JUSTICE BOARD FOR ENGLAND & WALES,6233,"53,400,000.00"
Ministry of Justice,MoJ HQ,04-Nov-10,ZZ900-MoJ HQ,311100-Legal Aid,LEGAL SERVICES COMMISSION,6231,"80,500,000.00"
Ministry of Justice,MoJ HQ,11-Nov-10,ZZ900-MoJ HQ,311100-Legal Aid,LEGAL SERVICES COMMISSION,6234,"21,800,000.00"
Ministry of Justice,MoJ HQ,18-Nov-10,ZZ900-MoJ HQ,311100-Legal Aid,LEGAL SERVICES COMMISSION,6236,"23,400,000.00"
Ministry of Justice,MoJ HQ,25-Nov-10,ZZ900-MoJ HQ,311100-Legal Aid,LEGAL SERVICES COMMISSION,6238,"26,000,000.00"
Ministry of Justice,MoJ HQ,08-Nov-10,ZZ900-MoJ HQ,532000-Tangible GBV - Additions,FUJITSU SERVICES LTD,1033333,"99,479.91"
Ministry of Justice,MoJ HQ,29-Nov-10,ZZ900-MoJ HQ,532000-Tangible GBV - Additions,FUJITSU SERVICES LTD,1035091,"26,604.52"
Ministry of Justice,MoJ HQ,29-Nov-10,ZZ900-MoJ HQ,532000-Tangible GBV - Additions,STERIA LTD,1035198,"76,192.88"
Ministry of Justice,MoJ HQ,23-Nov-10,ZZ900-MoJ HQ,610400-Debtors <1 year - Prepayments & Accrued Income,CITY OF WESTMINSTER,1034652,"92,934.33"
Ministry of Justice,MoJ HQ,23-Nov-10,ZZ900-MoJ HQ,610400-Debtors <1 year - Prepayments & Accrued Income,CITY OF WESTMINSTER,1034652,"56,401.50"
Ministry of Justice,MoJ HQ,23-Nov-10,ZZ900-MoJ HQ,610400-Debtors <1 year - Prepayments & Accrued Income,LONDON BOROUGH OF CAMDEN,1034655,"52,710.98"
Ministry of Justice,MoJ HQ,23-Nov-10,ZZ900-MoJ HQ,610400-Debtors <1 year - Prepayments & Accrued Income,LONDON BOROUGH OF ISLINGTON,1034656,"31,465.00"
Ministry of Justice,MoJ HQ,30-Nov-10,ZZ900-MoJ HQ,611000-Debtors <1 year - Other Debtors,PA CONSULTING SERVICES LTD,1035233,"25,121.22"
Ministry of Justice,MoJ HQ,19-Nov-10,ZZ900-MoJ HQ,710100-Creditors < 1 year - Other Taxation & Social Security,HMRC,1017,"1,910,119.77"
Ministry of Justice,MoJ HQ,19-Nov-10,ZZ900-MoJ HQ,710100-Creditors < 1 year - Other Taxation & Social Security,HMRC,1024,"84,996.64"
Ministry of Justice,MoJ HQ,19-Nov-10,ZZ900-MoJ HQ,710100-Creditors < 1 year - Other Taxation & Social Security,HMRC,1023,"52,290.09"
Ministry of Justice,MoJ HQ,19-Nov-10,ZZ900-MoJ HQ,710100-Creditors < 1 year - Other Taxation & Social Security,HMRC,1018,"1,475,106.07"
Ministry of Justice,MoJ HQ,04-Nov-10,ZZ900-MoJ HQ,710200-Creditors < 1 year - Trade & Other Creditors,COMPANY BARCLAYCARD CORPORATE,6230,"1,276,649.52"
Ministry of Justice,MoJ HQ,19-Nov-10,ZZ900-MoJ HQ,811000-Interdepartmental - MoJHQ,HMRC,1022,"109,235.00"
Ministry of Justice,MoJ HQ,19-Nov-10,ZZ900-MoJ HQ,811000-Interdepartmental - MoJHQ,HMRC,1021,"121,269.62"
Ministry of Justice,MoJ HQ,10-Nov-10,ZZ900-MoJ HQ,246000-Current Grants,HAGUE CONF ON PRIVATE INTERNATIONAL LAW#MG11009050,13588,"160,558.99"
Ministry of Justice,MoJ HQ,11-Nov-10,ZZ900-MoJ HQ,246000-Current Grants,DEVELOPMENT TRUST ASSOCIATION#RC35111011,1033685,"25,000.00"
Ministry of Justice,MoJ HQ,11-Nov-10,ZZ900-MoJ HQ,246000-Current Grants,ACTION FOR PRISONERS FAMILIES#RC35111010,1033684,"77,500.00"
Ministry of Justice,Tribunals,16-Nov-10,TR130-Finance & Resources,211000-Judicial Salaries - Salaried,JUDICIAL PENSIONS SCHEME,1053543,"1,331,474.13"
Ministry of Justice,Tribunals,12-Nov-10,TR120-Corporate,223001-Printing Postage and Office expenditure,XEROX (UK) LTD,1053072,"44,881.89"
Ministry of Justice,Tribunals,02-Nov-10,TR120-Corporate,222002-Other Property Costs,REGENT OFFICE CARE LTD,1051960,"27,683.16"
Ministry of Justice,Tribunals,30-Nov-10,TR120-Corporate,222002-Other Property Costs,MACLELLAN INTERNATIONAL LTD,1055724,"29,857.56"
Ministry of Justice,Tribunals,30-Nov-10,TR140-Finance & Resources (Estates),222002-Other Property Costs,DEPARTMENT FOR WORK & PENSIONS (DWP),1055672,"1,005,641.08"
Ministry of Justice,Tribunals,02-Nov-10,TR120-Corporate,223001-Printing Postage and Office expenditure,XEROX (UK) LTD,1052000,"65,673.02"
Ministry of Justice,Tribunals,19-Nov-10,TR120-Corporate,223001-Printing Postage and Office expenditure,ROYAL MAIL GROUP PLC,1054321,"162,130.47"
Ministry of Justice,Tribunals,02-Nov-10,TR100-Central Costs,265000-IT & Telecommunications,LEGATIO TECHNOLOGIES LTD,1051830,"94,000.00"
Ministry of Justice,Tribunals,19-Nov-10,TB140-Change Programme,265000-IT & Telecommunications,DELL TECHNOLOGY & SOLUTIONS LTD,1054103,"162,679.03"
Ministry of Justice,Tribunals,19-Nov-10,TB140-Change Programme,265000-IT & Telecommunications,DELL TECHNOLOGY & SOLUTIONS LTD,1054103,"188,203.73"
Ministry of Justice,Tribunals,05-Nov-10,TR160-Operational Support,223000-Other Expenditure,CALDER CONFERENCES LTD,1052151,"64,015.49"
Ministry of Justice,Tribunals,09-Nov-10,TR160-Operational Support,223000-Other Expenditure,CALDER CONFERENCES LTD,1052519,"32,608.41"
Ministry of Justice,Tribunals,19-Nov-10,TR160-Operational Support,223000-Other Expenditure,CALDER CONFERENCES LTD,1054068,"33,813.18"
Ministry of Justice,Tribunals,30-Nov-10,TR160-Operational Support,223000-Other Expenditure,CALDER CONFERENCES LTD,1055656,"29,726.51"
Ministry of Justice,Tribunals,16-Nov-10,TR160-Operational Support,265000-IT & Telecommunications,ATOS ORIGIN IT SERVICES UK LTD,1053239,"27,688.88"
Ministry of Justice,Tribunals,30-Nov-10,TB140-Change Programme,265000-IT & Telecommunications,LOGICA UK LTD,1055720,"94,397.15"
Ministry of Justice,Tribunals,02-Nov-10,TR100-Central Costs,266000-Judicial Costs,SWEET & MAXWELL LTD,1051976,"232,944.00"
Ministry of Justice,Tribunals,23-Nov-10,TR120-Corporate,610400-Debtors <1 year - Prepayments & Accrued Income,LONDON BOROUGH OF CAMDEN,1054618,"27,779.03"
Ministry of Justice,Tribunals,23-Nov-10,TR120-Corporate,610400-Debtors <1 year - Prepayments & Accrued Income,LONDON BOROUGH OF CAMDEN,1054618,"46,805.26"
Ministry of Justice,Tribunals,23-Nov-10,TR120-Corporate,610400-Debtors <1 year - Prepayments & Accrued Income,LONDON BOROUGH OF ISLINGTON,1054620,"72,590.53"
Ministry of Justice,Tribunals,23-Nov-10,TR120-Corporate,610400-Debtors <1 year - Prepayments & Accrued Income,CITY OF LONDON,1054609,"54,419.40"
Ministry of Justice,Tribunals,19-Nov-10,WW000-Balance Sheet,710100-Creditors < 1 year - Other Taxation & Social Security,HMRC,1007,"2,066,904.71"
Ministry of Justice,Tribunals,19-Nov-10,WW000-Balance Sheet,710100-Creditors < 1 year - Other Taxation & Social Security,HMRC,1010,"416,615.51"
Ministry of Justice,Tribunals,19-Nov-10,WW000-Balance Sheet,710100-Creditors < 1 year - Other Taxation & Social Security,HMRC,1012,"1,215,965.87"
Ministry of Justice,Tribunals,19-Nov-10,WW000-Balance Sheet,710100-Creditors < 1 year - Other Taxation & Social Security,HMRC,1009,"236,356.66"
Ministry of Justice,Tribunals,19-Nov-10,WW000-Balance Sheet,710100-Creditors < 1 year - Other Taxation & Social Security,HMRC,1011,"647,314.45"
Ministry of Justice,Tribunals,19-Nov-10,WW000-Balance Sheet,710100-Creditors < 1 year - Other Taxation & Social Security,HMRC,1008,"1,283,842.60"
